{"text_format":"1","workbook":"xlsx","n_sheets":3,"sheets":["INSTRUCTIONS","CADD_DATA","CORNER NAME"],"not_rendered":{"charts":0,"images":0,"macros":1,"external_links":0,"defined_names":290,"comments":0,"pivot_tables":0},"unopened":[],"bounds":{"document_bytes":16777216,"sheet_cells":100000,"rows_first":2000,"rows_last":500,"rows_between":2000,"halvings":0,"cell_chars":16384,"cell_head_chars":4096},"cells_cut":0,"cells_raw":0,"read":"whole","date_system":"1900"}

{"sheet":"INSTRUCTIONS","index":0,"n_rows":30,"n_cols":3,"rows_kept":30,"cut":false,"hidden":false,"merged":[[40,10,41,12],[29,2,37,8],[22,2,23,8]]}
[]
[]
[]
[null,"Step 1:","Rename \"CORNER NAME\" tab after corner to be designed"]
[null,"Step 2:","List all points, i.e., design nodes, of proposed design in Table 1 "]
[null,"Step 3:","List all segments of proposed design in Table 2"]
[null,"Step 4:","Define types of each segment"]
["*","Step 5: ","Overwrite slope ranges (as needed)"]
[null,"Step 6:","Define slope direction (as needed)"]
[null,"Step 7:","Click \"CALCULATE\" button"]
[null,"Step 8:","QA/QC results"]
[]
[]
[]
[]
[]
[]
[]
[]
[]
[]
[]
["*","NOTE 1:","Overwriting slopes can be done for an entire type(s) in the category table or for individual segments in their corresponding rows"]
[]
[]
[]
[]
[]
[]
["DISCLAIMER:",null,"This program/software/tool utilizes an optimization procedure as an add-in in Excel. This program/software/tool does NOT guarantee a compliant design by any means nor is it a substitute to engineering judgement. This program/software/tool does NOT generate optimal results it only aids in the sidewalk design process likely saving some time. All generated results are to be checked by user for accuracy/compliance in accordance with acceptable engineering practice and departmental guidelines. The user/designer is fully responsible/accountable for the resulting/proposed design and calculations."]

{"sheet":"CADD_DATA","index":1,"n_rows":1000,"n_cols":9,"rows_kept":1000,"cut":false,"hidden":false,"merged":[]}
["Point","Station","Offset","Northing","Easting","Elevation","Feature",null,"Output"]
[null,null,null,null,null,null,null,null,{"$f":"IF(LEN(A2)=5,CONCATENATE(A2,\",\",D2,\",\",E2,\",\",F2,\",\",G2),IF(ISBLANK(A2),\"\",CONCATENATE(A2,\",\",D2,\",\",E2,\",\",IFERROR(INDEX(INDIRECT(LEFT(A2,5)&\"!\"&\"$AC$3:$AC$71\",2),MATCH(MID(A2,7,20),INDIRECT(LEFT(A2,5)&\"!\"&\"$AA$3:$AA$71\",2),0)),F2),\",\",G2)))","v":""}]
[null,null,null,null,null,null,null,null,{"$f":"IF(LEN(A3)=5,CONCATENATE(A3,\",\",D3,\",\",E3,\",\",F3,\",\",G3),IF(ISBLANK(A3),\"\",CONCATENATE(A3,\",\",D3,\",\",E3,\",\",IFERROR(INDEX(INDIRECT(LEFT(A3,5)&\"!\"&\"$AC$3:$AC$71\",2),MATCH(MID(A3,7,20),INDIRECT(LEFT(A3,5)&\"!\"&\"$AA$3:$AA$71\",2),0)),F3),\",\",G3)))","v":""}]
[null,null,null,null,null,null,null,null,""]
[null,null,null,null,null,null,null,null,""]
[null,null,null,null,null,null,null,null,""]
[null,null,null,null,null,null,null,null,""]
[null,null,null,null,null,null,null,null,""]
[null,null,null,null,null,null,null,null,""]
[null,null,null,null,null,null,null,null,""]
[null,null,null,null,null,null,null,null,""]
[null,null,null,null,null,null,null,null,""]
[null,null,null,null,null,null,null,null,""]
[null,null,null,null,null,null,null,null,""]
[null,null,null,null,null,null,null,null,""]
[null,null,null,null,null,null,null,null,""]
[null,null,null,null,null,null,null,null,""]
[null,null,null,null,null,null,null,null,""]
[null,null,null,null,null,null,null,null,""]
[null,null,null,null,null,null,null,null,""]
[null,null,null,null,null,null,null,null,""]
[null,null,null,null,null,null,null,null,""]
[null,null,null,null,null,null,null,null,""]
[null,null,null,null,null,null,null,null,""]
[null,null,null,null,null,null,null,null,""]
[null,null,null,null,null,null,null,null,""]
[null,null,null,null,null,null,null,null,""]
[null,null,null,null,null,null,null,null,""]
[null,null,null,null,null,null,null,null,""]
[null,null,null,null,null,null,null,null,""]
[null,null,null,null,null,null,null,null,""]
[null,null,null,null,null,null,null,null,""]
[null,null,null,null,null,null,null,null,""]
[null,null,null,null,null,null,null,null,""]
[null,null,null,null,null,null,null,null,""]
[null,null,null,null,null,null,null,null,""]
[null,null,null,null,null,null,null,null,""]
[null,null,null,null,null,null,null,null,""]
[null,null,null,null,null,null,null,null,""]
[null,null,null,null,null,null,null,null,""]
[null,null,null,null,null,null,null,null,""]
[null,null,null,null,null,null,null,null,""]
[null,null,null,null,null,null,null,null,""]
[null,null,null,null,null,null,null,null,""]
[null,null,null,null,null,null,null,null,""]
[null,null,null,null,null,null,null,null,""]
[null,null,null,null,null,null,null,null,""]
[null,null,null,null,null,null,null,null,""]
[null,null,null,null,null,null,null,null,""]
[null,null,null,null,null,null,null,null,""]
[null,null,null,null,null,null,null,null,""]
[null,null,null,null,null,null,null,null,""]
[null,null,null,null,null,null,null,null,""]
[null,null,null,null,null,null,null,null,""]
[null,null,null,null,null,null,null,null,""]
[null,null,null,null,null,null,null,null,""]
[null,null,null,null,null,null,null,null,""]
[null,null,null,null,null,null,null,null,""]
[null,null,null,null,null,null,null,null,""]
[null,null,null,null,null,null,null,null,""]
[null,null,null,null,null,null,null,null,""]
[null,null,null,null,null,null,null,null,""]
[null,null,null,null,null,null,null,null,""]
[null,null,null,null,null,null,null,null,""]
[null,null,null,null,null,null,null,null,""]
[null,null,null,null,null,null,null,null,""]
[null,null,null,null,null,null,null,null,{"$f":"IF(LEN(A67)=5,CONCATENATE(A67,\",\",D67,\",\",E67,\",\",F67,\",\",G67),IF(ISBLANK(A67),\"\",CONCATENATE(A67,\",\",D67,\",\",E67,\",\",IFERROR(INDEX(INDIRECT(LEFT(A67,5)&\"!\"&\"$AC$3:$AC$71\",2),MATCH(MID(A67,7,20),INDIRECT(LEFT(A67,5)&\"!\"&\"$AA$3:$AA$71\",2),0)),F67),\",\",G67)))","v":""}]
[null,null,null,null,null,null,null,null,""]
[null,null,null,null,null,null,null,null,""]
[null,null,null,null,null,null,null,null,""]
[null,null,null,null,null,null,null,null,""]
[null,null,null,null,null,null,null,null,""]
[null,null,null,null,null,null,null,null,""]
[null,null,null,null,null,null,null,null,""]
[null,null,null,null,null,null,null,null,""]
[null,null,null,null,null,null,null,null,""]
[null,null,null,null,null,null,null,null,""]
[null,null,null,null,null,null,null,null,""]
[null,null,null,null,null,null,null,null,""]
[null,null,null,null,null,null,null,null,""]
[null,null,null,null,null,null,null,null,""]
[null,null,null,null,null,null,null,null,""]
[null,null,null,null,null,null,null,null,""]
[null,null,null,null,null,null,null,null,""]
[null,null,null,null,null,null,null,null,""]
[null,null,null,null,null,null,null,null,""]
[null,null,null,null,null,null,null,null,""]
[null,null,null,null,null,null,null,null,""]
[null,null,null,null,null,null,null,null,""]
[null,null,null,null,null,null,null,null,""]
[null,null,null,null,null,null,null,null,""]
[null,null,null,null,null,null,null,null,""]
[null,null,null,null,null,null,null,null,""]
[null,null,null,null,null,null,null,null,""]
[null,null,null,null,null,null,null,null,""]
[null,null,null,null,null,null,null,null,""]
[null,null,null,null,null,null,null,null,""]
[null,null,null,null,null,null,null,null,""]
[null,null,null,null,null,null,null,null,""]
[null,null,null,null,null,null,null,null,""]
[null,null,null,null,null,null,null,null,""]
[null,null,null,null,null,null,null,null,""]
[null,null,null,null,null,null,null,null,""]
[null,null,null,null,null,null,null,null,""]
[null,null,null,null,null,null,null,null,""]
[null,null,null,null,null,null,null,null,""]
[null,null,null,null,null,null,null,null,""]
[null,null,null,null,null,null,null,null,""]
[null,null,null,null,null,null,null,null,""]
[null,null,null,null,null,null,null,null,""]
[null,null,null,null,null,null,null,null,""]
[null,null,null,null,null,null,null,null,""]
[null,null,null,null,null,null,null,null,""]
[null,null,null,null,null,null,null,null,""]
[null,null,null,null,null,null,null,null,""]
[null,null,null,null,null,null,null,null,""]
[null,null,null,null,null,null,null,null,""]
[null,null,null,null,null,null,null,null,""]
[null,null,null,null,null,null,null,null,""]
[null,null,null,null,null,null,null,null,""]
[null,null,null,null,null,null,null,null,""]
[null,null,null,null,null,null,null,null,""]
[null,null,null,null,null,null,null,null,""]
[null,null,null,null,null,null,null,null,""]
[null,null,null,null,null,null,null,null,""]
[null,null,null,null,null,null,null,null,""]
[null,null,null,null,null,null,null,null,""]
[null,null,null,null,null,null,null,null,""]
[null,null,null,null,null,null,null,null,""]
[null,null,null,null,null,null,null,null,""]
[null,null,null,null,null,null,null,null,{"$f":"IF(LEN(A131)=5,CONCATENATE(A131,\",\",D131,\",\",E131,\",\",F131,\",\",G131),IF(ISBLANK(A131),\"\",CONCATENATE(A131,\",\",D131,\",\",E131,\",\",IFERROR(INDEX(INDIRECT(LEFT(A131,5)&\"!\"&\"$AC$3:$AC$71\",2),MATCH(MID(A131,7,20),INDIRECT(LEFT(A131,5)&\"!\"&\"$AA$3:$AA$71\",2),0)),F131),\",\",G131)))","v":""}]
[null,null,null,null,null,null,null,null,""]
[null,null,null,null,null,null,null,null,""]
[null,null,null,null,null,null,null,null,""]
[null,null,null,null,null,null,null,null,""]
[null,null,null,null,null,null,null,null,""]
[null,null,null,null,null,null,null,null,""]
[null,null,null,null,null,null,null,null,""]
[null,null,null,null,null,null,null,null,""]
[null,null,null,null,null,null,null,null,""]
[null,null,null,null,null,null,null,null,""]
[null,null,null,null,null,null,null,null,""]
[null,null,null,null,null,null,null,null,""]
[null,null,null,null,null,null,null,null,""]
[null,null,null,null,null,null,null,null,""]
[null,null,null,null,null,null,null,null,""]
[null,null,null,null,null,null,null,null,""]
[null,null,null,null,null,null,null,null,""]
[null,null,null,null,null,null,null,null,""]
[null,null,null,null,null,null,null,null,""]
[null,null,null,null,null,null,null,null,""]
[null,null,null,null,null,null,null,null,""]
[null,null,null,null,null,null,null,null,""]
[null,null,null,null,null,null,null,null,""]
[null,null,null,null,null,null,null,null,""]
[null,null,null,null,null,null,null,null,""]
[null,null,null,null,null,null,null,null,""]
[null,null,null,null,null,null,null,null,""]
[null,null,null,null,null,null,null,null,""]
[null,null,null,null,null,null,null,null,""]
[null,null,null,null,null,null,null,null,""]
[null,null,null,null,null,null,null,null,""]
[null,null,null,null,null,null,null,null,""]
[null,null,null,null,null,null,null,null,""]
[null,null,null,null,null,null,null,null,""]
[null,null,null,null,null,null,null,null,""]
[null,null,null,null,null,null,null,null,""]
[null,null,null,null,null,null,null,null,""]
[null,null,null,null,null,null,null,null,""]
[null,null,null,null,null,null,null,null,""]
[null,null,null,null,null,null,null,null,""]
[null,null,null,null,null,null,null,null,""]
[null,null,null,null,null,null,null,null,""]
[null,null,null,null,null,null,null,null,""]
[null,null,null,null,null,null,null,null,""]
[null,null,null,null,null,null,null,null,""]
[null,null,null,null,null,null,null,null,""]
[null,null,null,null,null,null,null,null,""]
[null,null,null,null,null,null,null,null,""]
[null,null,null,null,null,null,null,null,""]
[null,null,null,null,null,null,null,null,""]
[null,null,null,null,null,null,null,null,""]
[null,null,null,null,null,null,null,null,""]
[null,null,null,null,null,null,null,null,""]
[null,null,null,null,null,null,null,null,""]
[null,null,null,null,null,null,null,null,""]
[null,null,null,null,null,null,null,null,""]
[null,null,null,null,null,null,null,null,""]
[null,null,null,null,null,null,null,null,""]
[null,null,null,null,null,null,null,null,""]
[null,null,null,null,null,null,null,null,""]
[null,null,null,null,null,null,null,null,""]
[null,null,null,null,null,null,null,null,""]
[null,null,null,null,null,null,null,null,""]
[null,null,null,null,null,null,null,null,{"$f":"IF(LEN(A195)=5,CONCATENATE(A195,\",\",D195,\",\",E195,\",\",F195,\",\",G195),IF(ISBLANK(A195),\"\",CONCATENATE(A195,\",\",D195,\",\",E195,\",\",IFERROR(INDEX(INDIRECT(LEFT(A195,5)&\"!\"&\"$AC$3:$AC$71\",2),MATCH(MID(A195,7,20),INDIRECT(LEFT(A195,5)&\"!\"&\"$AA$3:$AA$71\",2),0)),F195),\",\",G195)))","v":""}]
[null,null,null,null,null,null,null,null,""]
[null,null,null,null,null,null,null,null,""]
[null,null,null,null,null,null,null,null,""]
[null,null,null,null,null,null,null,null,""]
[null,null,null,null,null,null,null,null,""]
[null,null,null,null,null,null,null,null,""]
[null,null,null,null,null,null,null,null,""]
[null,null,null,null,null,null,null,null,""]
[null,null,null,null,null,null,null,null,""]
[null,null,null,null,null,null,null,null,""]
[null,null,null,null,null,null,null,null,""]
[null,null,null,null,null,null,null,null,""]
[null,null,null,null,null,null,null,null,""]
[null,null,null,null,null,null,null,null,""]
[null,null,null,null,null,null,null,null,""]
[null,null,null,null,null,null,null,null,""]
[null,null,null,null,null,null,null,null,""]
[null,null,null,null,null,null,null,null,""]
[null,null,null,null,null,null,null,null,""]
[null,null,null,null,null,null,null,null,""]
[null,null,null,null,null,null,null,null,""]
[null,null,null,null,null,null,null,null,""]
[null,null,null,null,null,null,null,null,""]
[null,null,null,null,null,null,null,null,""]
[null,null,null,null,null,null,null,null,""]
[null,null,null,null,null,null,null,null,""]
[null,null,null,null,null,null,null,null,""]
[null,null,null,null,null,null,null,null,""]
[null,null,null,null,null,null,null,null,""]
[null,null,null,null,null,null,null,null,""]
[null,null,null,null,null,null,null,null,""]
[null,null,null,null,null,null,null,null,""]
[null,null,null,null,null,null,null,null,""]
[null,null,null,null,null,null,null,null,""]
[null,null,null,null,null,null,null,null,""]
[null,null,null,null,null,null,null,null,""]
[null,null,null,null,null,null,null,null,""]
[null,null,null,null,null,null,null,null,""]
[null,null,null,null,null,null,null,null,""]
[null,null,null,null,null,null,null,null,""]
[null,null,null,null,null,null,null,null,""]
[null,null,null,null,null,null,null,null,""]
[null,null,null,null,null,null,null,null,""]
[null,null,null,null,null,null,null,null,""]
[null,null,null,null,null,null,null,null,""]
[null,null,null,null,null,null,null,null,""]
[null,null,null,null,null,null,null,null,""]
[null,null,null,null,null,null,null,null,""]
[null,null,null,null,null,null,null,null,""]
[null,null,null,null,null,null,null,null,""]
[null,null,null,null,null,null,null,null,""]
[null,null,null,null,null,null,null,null,""]
[null,null,null,null,null,null,null,null,""]
[null,null,null,null,null,null,null,null,""]
[null,null,null,null,null,null,null,null,""]
[null,null,null,null,null,null,null,null,""]
[null,null,null,null,null,null,null,null,""]
[null,null,null,null,null,null,null,null,""]
[null,null,null,null,null,null,null,null,""]
[null,null,null,null,null,null,null,null,""]
[null,null,null,null,null,null,null,null,""]
[null,null,null,null,null,null,null,null,""]
[null,null,null,null,null,null,null,null,""]
[null,null,null,null,null,null,null,null,{"$f":"IF(LEN(A259)=5,CONCATENATE(A259,\",\",D259,\",\",E259,\",\",F259,\",\",G259),IF(ISBLANK(A259),\"\",CONCATENATE(A259,\",\",D259,\",\",E259,\",\",IFERROR(INDEX(INDIRECT(LEFT(A259,5)&\"!\"&\"$AC$3:$AC$71\",2),MATCH(MID(A259,7,20),INDIRECT(LEFT(A259,5)&\"!\"&\"$AA$3:$AA$71\",2),0)),F259),\",\",G259)))","v":""}]
[null,null,null,null,null,null,null,null,""]
[null,null,null,null,null,null,null,null,""]
[null,null,null,null,null,null,null,null,""]
[null,null,null,null,null,null,null,null,""]
[null,null,null,null,null,null,null,null,""]
[null,null,null,null,null,null,null,null,""]
[null,null,null,null,null,null,null,null,""]
[null,null,null,null,null,null,null,null,""]
[null,null,null,null,null,null,null,null,""]
[null,null,null,null,null,null,null,null,""]
[null,null,null,null,null,null,null,null,""]
[null,null,null,null,null,null,null,null,""]
[null,null,null,null,null,null,null,null,""]
[null,null,null,null,null,null,null,null,""]
[null,null,null,null,null,null,null,null,""]
[null,null,null,null,null,null,null,null,""]
[null,null,null,null,null,null,null,null,""]
[null,null,null,null,null,null,null,null,""]
[null,null,null,null,null,null,null,null,""]
[null,null,null,null,null,null,null,null,""]
[null,null,null,null,null,null,null,null,""]
[null,null,null,null,null,null,null,null,""]
[null,null,null,null,null,null,null,null,""]
[null,null,null,null,null,null,null,null,""]
[null,null,null,null,null,null,null,null,""]
[null,null,null,null,null,null,null,null,""]
[null,null,null,null,null,null,null,null,""]
[null,null,null,null,null,null,null,null,""]
[null,null,null,null,null,null,null,null,""]
[null,null,null,null,null,null,null,null,""]
[null,null,null,null,null,null,null,null,""]
[null,null,null,null,null,null,null,null,""]
[null,null,null,null,null,null,null,null,""]
[null,null,null,null,null,null,null,null,""]
[null,null,null,null,null,null,null,null,""]
[null,null,null,null,null,null,null,null,""]
[null,null,null,null,null,null,null,null,""]
[null,null,null,null,null,null,null,null,""]
[null,null,null,null,null,null,null,null,""]
[null,null,null,null,null,null,null,null,""]
[null,null,null,null,null,null,null,null,""]
[null,null,null,null,null,null,null,null,""]
[null,null,null,null,null,null,null,null,""]
[null,null,null,null,null,null,null,null,""]
[null,null,null,null,null,null,null,null,""]
[null,null,null,null,null,null,null,null,""]
[null,null,null,null,null,null,null,null,""]
[null,null,null,null,null,null,null,null,""]
[null,null,null,null,null,null,null,null,""]
[null,null,null,null,null,null,null,null,""]
[null,null,null,null,null,null,null,null,""]
[null,null,null,null,null,null,null,null,""]
[null,null,null,null,null,null,null,null,""]
[null,null,null,null,null,null,null,null,""]
[null,null,null,null,null,null,null,null,""]
[null,null,null,null,null,null,null,null,""]
[null,null,null,null,null,null,null,null,""]
[null,null,null,null,null,null,null,null,""]
[null,null,null,null,null,null,null,null,""]
[null,null,null,null,null,null,null,null,""]
[null,null,null,null,null,null,null,null,""]
[null,null,null,null,null,null,null,null,""]
[null,null,null,null,null,null,null,null,""]
[null,null,null,null,null,null,null,null,{"$f":"IF(LEN(A323)=5,CONCATENATE(A323,\",\",D323,\",\",E323,\",\",F323,\",\",G323),IF(ISBLANK(A323),\"\",CONCATENATE(A323,\",\",D323,\",\",E323,\",\",IFERROR(INDEX(INDIRECT(LEFT(A323,5)&\"!\"&\"$AC$3:$AC$71\",2),MATCH(MID(A323,7,20),INDIRECT(LEFT(A323,5)&\"!\"&\"$AA$3:$AA$71\",2),0)),F323),\",\",G323)))","v":""}]
[null,null,null,null,null,null,null,null,""]
[null,null,null,null,null,null,null,null,""]
[null,null,null,null,null,null,null,null,""]
[null,null,null,null,null,null,null,null,""]
[null,null,null,null,null,null,null,null,""]
[null,null,null,null,null,null,null,null,""]
[null,null,null,null,null,null,null,null,""]
[null,null,null,null,null,null,null,null,""]
[null,null,null,null,null,null,null,null,""]
[null,null,null,null,null,null,null,null,""]
[null,null,null,null,null,null,null,null,""]
[null,null,null,null,null,null,null,null,""]
[null,null,null,null,null,null,null,null,""]
[null,null,null,null,null,null,null,null,""]
[null,null,null,null,null,null,null,null,""]
[null,null,null,null,null,null,null,null,""]
[null,null,null,null,null,null,null,null,""]
[null,null,null,null,null,null,null,null,""]
[null,null,null,null,null,null,null,null,""]
[null,null,null,null,null,null,null,null,""]
[null,null,null,null,null,null,null,null,""]
[null,null,null,null,null,null,null,null,""]
[null,null,null,null,null,null,null,null,""]
[null,null,null,null,null,null,null,null,""]
[null,null,null,null,null,null,null,null,""]
[null,null,null,null,null,null,null,null,""]
[null,null,null,null,null,null,null,null,""]
[null,null,null,null,null,null,null,null,""]
[null,null,null,null,null,null,null,null,""]
[null,null,null,null,null,null,null,null,""]
[null,null,null,null,null,null,null,null,""]
[null,null,null,null,null,null,null,null,""]
[null,null,null,null,null,null,null,null,""]
[null,null,null,null,null,null,null,null,""]
[null,null,null,null,null,null,null,null,""]
[null,null,null,null,null,null,null,null,""]
[null,null,null,null,null,null,null,null,""]
[null,null,null,null,null,null,null,null,""]
[null,null,null,null,null,null,null,null,""]
[null,null,null,null,null,null,null,null,""]
[null,null,null,null,null,null,null,null,""]
[null,null,null,null,null,null,null,null,""]
[null,null,null,null,null,null,null,null,""]
[null,null,null,null,null,null,null,null,""]
[null,null,null,null,null,null,null,null,""]
[null,null,null,null,null,null,null,null,""]
[null,null,null,null,null,null,null,null,""]
[null,null,null,null,null,null,null,null,""]
[null,null,null,null,null,null,null,null,""]
[null,null,null,null,null,null,null,null,""]
[null,null,null,null,null,null,null,null,""]
[null,null,null,null,null,null,null,null,""]
[null,null,null,null,null,null,null,null,""]
[null,null,null,null,null,null,null,null,""]
[null,null,null,null,null,null,null,null,""]
[null,null,null,null,null,null,null,null,""]
[null,null,null,null,null,null,null,null,""]
[null,null,null,null,null,null,null,null,""]
[null,null,null,null,null,null,null,null,""]
[null,null,null,null,null,null,null,null,""]
[null,null,null,null,null,null,null,null,""]
[null,null,null,null,null,null,null,null,""]
[null,null,null,null,null,null,null,null,""]
[null,null,null,null,null,null,null,null,{"$f":"IF(LEN(A387)=5,CONCATENATE(A387,\",\",D387,\",\",E387,\",\",F387,\",\",G387),IF(ISBLANK(A387),\"\",CONCATENATE(A387,\",\",D387,\",\",E387,\",\",IFERROR(INDEX(INDIRECT(LEFT(A387,5)&\"!\"&\"$AC$3:$AC$71\",2),MATCH(MID(A387,7,20),INDIRECT(LEFT(A387,5)&\"!\"&\"$AA$3:$AA$71\",2),0)),F387),\",\",G387)))","v":""}]
[null,null,null,null,null,null,null,null,""]
[null,null,null,null,null,null,null,null,""]
[null,null,null,null,null,null,null,null,""]
[null,null,null,null,null,null,null,null,""]
[null,null,null,null,null,null,null,null,""]
[null,null,null,null,null,null,null,null,""]
[null,null,null,null,null,null,null,null,""]
[null,null,null,null,null,null,null,null,""]
[null,null,null,null,null,null,null,null,""]
[null,null,null,null,null,null,null,null,""]
[null,null,null,null,null,null,null,null,""]
[null,null,null,null,null,null,null,null,""]
[null,null,null,null,null,null,null,null,""]
[null,null,null,null,null,null,null,null,""]
[null,null,null,null,null,null,null,null,""]
[null,null,null,null,null,null,null,null,""]
[null,null,null,null,null,null,null,null,""]
[null,null,null,null,null,null,null,null,""]
[null,null,null,null,null,null,null,null,""]
[null,null,null,null,null,null,null,null,""]
[null,null,null,null,null,null,null,null,""]
[null,null,null,null,null,null,null,null,""]
[null,null,null,null,null,null,null,null,""]
[null,null,null,null,null,null,null,null,""]
[null,null,null,null,null,null,null,null,""]
[null,null,null,null,null,null,null,null,""]
[null,null,null,null,null,null,null,null,""]
[null,null,null,null,null,null,null,null,""]
[null,null,null,null,null,null,null,null,""]
[null,null,null,null,null,null,null,null,""]
[null,null,null,null,null,null,null,null,""]
[null,null,null,null,null,null,null,null,""]
[null,null,null,null,null,null,null,null,""]
[null,null,null,null,null,null,null,null,""]
[null,null,null,null,null,null,null,null,""]
[null,null,null,null,null,null,null,null,""]
[null,null,null,null,null,null,null,null,""]
[null,null,null,null,null,null,null,null,""]
[null,null,null,null,null,null,null,null,""]
[null,null,null,null,null,null,null,null,""]
[null,null,null,null,null,null,null,null,""]
[null,null,null,null,null,null,null,null,""]
[null,null,null,null,null,null,null,null,""]
[null,null,null,null,null,null,null,null,""]
[null,null,null,null,null,null,null,null,""]
[null,null,null,null,null,null,null,null,""]
[null,null,null,null,null,null,null,null,""]
[null,null,null,null,null,null,null,null,""]
[null,null,null,null,null,null,null,null,""]
[null,null,null,null,null,null,null,null,""]
[null,null,null,null,null,null,null,null,""]
[null,null,null,null,null,null,null,null,""]
[null,null,null,null,null,null,null,null,""]
[null,null,null,null,null,null,null,null,""]
[null,null,null,null,null,null,null,null,""]
[null,null,null,null,null,null,null,null,""]
[null,null,null,null,null,null,null,null,""]
[null,null,null,null,null,null,null,null,""]
[null,null,null,null,null,null,null,null,""]
[null,null,null,null,null,null,null,null,""]
[null,null,null,null,null,null,null,null,""]
[null,null,null,null,null,null,null,null,""]
[null,null,null,null,null,null,null,null,""]
[null,null,null,null,null,null,null,null,{"$f":"IF(LEN(A451)=5,CONCATENATE(A451,\",\",D451,\",\",E451,\",\",F451,\",\",G451),IF(ISBLANK(A451),\"\",CONCATENATE(A451,\",\",D451,\",\",E451,\",\",IFERROR(INDEX(INDIRECT(LEFT(A451,5)&\"!\"&\"$AC$3:$AC$71\",2),MATCH(MID(A451,7,20),INDIRECT(LEFT(A451,5)&\"!\"&\"$AA$3:$AA$71\",2),0)),F451),\",\",G451)))","v":""}]
[null,null,null,null,null,null,null,null,""]
[null,null,null,null,null,null,null,null,""]
[null,null,null,null,null,null,null,null,""]
[null,null,null,null,null,null,null,null,""]
[null,null,null,null,null,null,null,null,""]
[null,null,null,null,null,null,null,null,""]
[null,null,null,null,null,null,null,null,""]
[null,null,null,null,null,null,null,null,""]
[null,null,null,null,null,null,null,null,""]
[null,null,null,null,null,null,null,null,""]
[null,null,null,null,null,null,null,null,""]
[null,null,null,null,null,null,null,null,""]
[null,null,null,null,null,null,null,null,""]
[null,null,null,null,null,null,null,null,""]
[null,null,null,null,null,null,null,null,""]
[null,null,null,null,null,null,null,null,""]
[null,null,null,null,null,null,null,null,""]
[null,null,null,null,null,null,null,null,""]
[null,null,null,null,null,null,null,null,""]
[null,null,null,null,null,null,null,null,""]
[null,null,null,null,null,null,null,null,""]
[null,null,null,null,null,null,null,null,""]
[null,null,null,null,null,null,null,null,""]
[null,null,null,null,null,null,null,null,""]
[null,null,null,null,null,null,null,null,""]
[null,null,null,null,null,null,null,null,""]
[null,null,null,null,null,null,null,null,""]
[null,null,null,null,null,null,null,null,""]
[null,null,null,null,null,null,null,null,""]
[null,null,null,null,null,null,null,null,""]
[null,null,null,null,null,null,null,null,""]
[null,null,null,null,null,null,null,null,""]
[null,null,null,null,null,null,null,null,""]
[null,null,null,null,null,null,null,null,""]
[null,null,null,null,null,null,null,null,""]
[null,null,null,null,null,null,null,null,""]
[null,null,null,null,null,null,null,null,""]
[null,null,null,null,null,null,null,null,""]
[null,null,null,null,null,null,null,null,""]
[null,null,null,null,null,null,null,null,""]
[null,null,null,null,null,null,null,null,""]
[null,null,null,null,null,null,null,null,""]
[null,null,null,null,null,null,null,null,""]
[null,null,null,null,null,null,null,null,""]
[null,null,null,null,null,null,null,null,""]
[null,null,null,null,null,null,null,null,""]
[null,null,null,null,null,null,null,null,""]
[null,null,null,null,null,null,null,null,""]
[null,null,null,null,null,null,null,null,""]
[null,null,null,null,null,null,null,null,""]
[null,null,null,null,null,null,null,null,""]
[null,null,null,null,null,null,null,null,""]
[null,null,null,null,null,null,null,null,""]
[null,null,null,null,null,null,null,null,""]
[null,null,null,null,null,null,null,null,""]
[null,null,null,null,null,null,null,null,""]
[null,null,null,null,null,null,null,null,""]
[null,null,null,null,null,null,null,null,""]
[null,null,null,null,null,null,null,null,""]
[null,null,null,null,null,null,null,null,""]
[null,null,null,null,null,null,null,null,""]
[null,null,null,null,null,null,null,null,""]
[null,null,null,null,null,null,null,null,""]
[null,null,null,null,null,null,null,null,{"$f":"IF(LEN(A515)=5,CONCATENATE(A515,\",\",D515,\",\",E515,\",\",F515,\",\",G515),IF(ISBLANK(A515),\"\",CONCATENATE(A515,\",\",D515,\",\",E515,\",\",IFERROR(INDEX(INDIRECT(LEFT(A515,5)&\"!\"&\"$AC$3:$AC$71\",2),MATCH(MID(A515,7,20),INDIRECT(LEFT(A515,5)&\"!\"&\"$AA$3:$AA$71\",2),0)),F515),\",\",G515)))","v":""}]
[null,null,null,null,null,null,null,null,""]
[null,null,null,null,null,null,null,null,""]
[null,null,null,null,null,null,null,null,""]
[null,null,null,null,null,null,null,null,""]
[null,null,null,null,null,null,null,null,""]
[null,null,null,null,null,null,null,null,""]
[null,null,null,null,null,null,null,null,""]
[null,null,null,null,null,null,null,null,""]
[null,null,null,null,null,null,null,null,""]
[null,null,null,null,null,null,null,null,""]
[null,null,null,null,null,null,null,null,""]
[null,null,null,null,null,null,null,null,""]
[null,null,null,null,null,null,null,null,""]
[null,null,null,null,null,null,null,null,""]
[null,null,null,null,null,null,null,null,""]
[null,null,null,null,null,null,null,null,""]
[null,null,null,null,null,null,null,null,""]
[null,null,null,null,null,null,null,null,""]
[null,null,null,null,null,null,null,null,""]
[null,null,null,null,null,null,null,null,""]
[null,null,null,null,null,null,null,null,""]
[null,null,null,null,null,null,null,null,""]
[null,null,null,null,null,null,null,null,""]
[null,null,null,null,null,null,null,null,""]
[null,null,null,null,null,null,null,null,""]
[null,null,null,null,null,null,null,null,""]
[null,null,null,null,null,null,null,null,""]
[null,null,null,null,null,null,null,null,""]
[null,null,null,null,null,null,null,null,""]
[null,null,null,null,null,null,null,null,""]
[null,null,null,null,null,null,null,null,""]
[null,null,null,null,null,null,null,null,""]
[null,null,null,null,null,null,null,null,""]
[null,null,null,null,null,null,null,null,""]
[null,null,null,null,null,null,null,null,""]
[null,null,null,null,null,null,null,null,""]
[null,null,null,null,null,null,null,null,""]
[null,null,null,null,null,null,null,null,""]
[null,null,null,null,null,null,null,null,""]
[null,null,null,null,null,null,null,null,""]
[null,null,null,null,null,null,null,null,""]
[null,null,null,null,null,null,null,null,""]
[null,null,null,null,null,null,null,null,""]
[null,null,null,null,null,null,null,null,""]
[null,null,null,null,null,null,null,null,""]
[null,null,null,null,null,null,null,null,""]
[null,null,null,null,null,null,null,null,""]
[null,null,null,null,null,null,null,null,""]
[null,null,null,null,null,null,null,null,""]
[null,null,null,null,null,null,null,null,""]
[null,null,null,null,null,null,null,null,""]
[null,null,null,null,null,null,null,null,""]
[null,null,null,null,null,null,null,null,""]
[null,null,null,null,null,null,null,null,""]
[null,null,null,null,null,null,null,null,""]
[null,null,null,null,null,null,null,null,""]
[null,null,null,null,null,null,null,null,""]
[null,null,null,null,null,null,null,null,""]
[null,null,null,null,null,null,null,null,""]
[null,null,null,null,null,null,null,null,""]
[null,null,null,null,null,null,null,null,""]
[null,null,null,null,null,null,null,null,""]
[null,null,null,null,null,null,null,null,""]
[null,null,null,null,null,null,null,null,{"$f":"IF(LEN(A579)=5,CONCATENATE(A579,\",\",D579,\",\",E579,\",\",F579,\",\",G579),IF(ISBLANK(A579),\"\",CONCATENATE(A579,\",\",D579,\",\",E579,\",\",IFERROR(INDEX(INDIRECT(LEFT(A579,5)&\"!\"&\"$AC$3:$AC$71\",2),MATCH(MID(A579,7,20),INDIRECT(LEFT(A579,5)&\"!\"&\"$AA$3:$AA$71\",2),0)),F579),\",\",G579)))","v":""}]
[null,null,null,null,null,null,null,null,""]
[null,null,null,null,null,null,null,null,""]
[null,null,null,null,null,null,null,null,""]
[null,null,null,null,null,null,null,null,""]
[null,null,null,null,null,null,null,null,""]
[null,null,null,null,null,null,null,null,""]
[null,null,null,null,null,null,null,null,""]
[null,null,null,null,null,null,null,null,""]
[null,null,null,null,null,null,null,null,""]
[null,null,null,null,null,null,null,null,""]
[null,null,null,null,null,null,null,null,""]
[null,null,null,null,null,null,null,null,""]
[null,null,null,null,null,null,null,null,""]
[null,null,null,null,null,null,null,null,""]
[null,null,null,null,null,null,null,null,""]
[null,null,null,null,null,null,null,null,""]
[null,null,null,null,null,null,null,null,""]
[null,null,null,null,null,null,null,null,""]
[null,null,null,null,null,null,null,null,""]
[null,null,null,null,null,null,null,null,""]
[null,null,null,null,null,null,null,null,""]
[null,null,null,null,null,null,null,null,""]
[null,null,null,null,null,null,null,null,""]
[null,null,null,null,null,null,null,null,""]
[null,null,null,null,null,null,null,null,""]
[null,null,null,null,null,null,null,null,""]
[null,null,null,null,null,null,null,null,""]
[null,null,null,null,null,null,null,null,""]
[null,null,null,null,null,null,null,null,""]
[null,null,null,null,null,null,null,null,""]
[null,null,null,null,null,null,null,null,""]
[null,null,null,null,null,null,null,null,""]
[null,null,null,null,null,null,null,null,""]
[null,null,null,null,null,null,null,null,""]
[null,null,null,null,null,null,null,null,""]
[null,null,null,null,null,null,null,null,""]
[null,null,null,null,null,null,null,null,""]
[null,null,null,null,null,null,null,null,""]
[null,null,null,null,null,null,null,null,""]
[null,null,null,null,null,null,null,null,""]
[null,null,null,null,null,null,null,null,""]
[null,null,null,null,null,null,null,null,""]
[null,null,null,null,null,null,null,null,""]
[null,null,null,null,null,null,null,null,""]
[null,null,null,null,null,null,null,null,""]
[null,null,null,null,null,null,null,null,""]
[null,null,null,null,null,null,null,null,""]
[null,null,null,null,null,null,null,null,""]
[null,null,null,null,null,null,null,null,""]
[null,null,null,null,null,null,null,null,""]
[null,null,null,null,null,null,null,null,""]
[null,null,null,null,null,null,null,null,""]
[null,null,null,null,null,null,null,null,""]
[null,null,null,null,null,null,null,null,""]
[null,null,null,null,null,null,null,null,""]
[null,null,null,null,null,null,null,null,""]
[null,null,null,null,null,null,null,null,""]
[null,null,null,null,null,null,null,null,""]
[null,null,null,null,null,null,null,null,""]
[null,null,null,null,null,null,null,null,""]
[null,null,null,null,null,null,null,null,""]
[null,null,null,null,null,null,null,null,""]
[null,null,null,null,null,null,null,null,""]
[null,null,null,null,null,null,null,null,{"$f":"IF(LEN(A643)=5,CONCATENATE(A643,\",\",D643,\",\",E643,\",\",F643,\",\",G643),IF(ISBLANK(A643),\"\",CONCATENATE(A643,\",\",D643,\",\",E643,\",\",IFERROR(INDEX(INDIRECT(LEFT(A643,5)&\"!\"&\"$AC$3:$AC$71\",2),MATCH(MID(A643,7,20),INDIRECT(LEFT(A643,5)&\"!\"&\"$AA$3:$AA$71\",2),0)),F643),\",\",G643)))","v":""}]
[null,null,null,null,null,null,null,null,""]
[null,null,null,null,null,null,null,null,""]
[null,null,null,null,null,null,null,null,""]
[null,null,null,null,null,null,null,null,""]
[null,null,null,null,null,null,null,null,""]
[null,null,null,null,null,null,null,null,""]
[null,null,null,null,null,null,null,null,""]
[null,null,null,null,null,null,null,null,""]
[null,null,null,null,null,null,null,null,""]
[null,null,null,null,null,null,null,null,""]
[null,null,null,null,null,null,null,null,""]
[null,null,null,null,null,null,null,null,""]
[null,null,null,null,null,null,null,null,""]
[null,null,null,null,null,null,null,null,""]
[null,null,null,null,null,null,null,null,""]
[null,null,null,null,null,null,null,null,""]
[null,null,null,null,null,null,null,null,""]
[null,null,null,null,null,null,null,null,""]
[null,null,null,null,null,null,null,null,""]
[null,null,null,null,null,null,null,null,""]
[null,null,null,null,null,null,null,null,""]
[null,null,null,null,null,null,null,null,""]
[null,null,null,null,null,null,null,null,""]
[null,null,null,null,null,null,null,null,""]
[null,null,null,null,null,null,null,null,""]
[null,null,null,null,null,null,null,null,""]
[null,null,null,null,null,null,null,null,""]
[null,null,null,null,null,null,null,null,""]
[null,null,null,null,null,null,null,null,""]
[null,null,null,null,null,null,null,null,""]
[null,null,null,null,null,null,null,null,""]
[null,null,null,null,null,null,null,null,""]
[null,null,null,null,null,null,null,null,""]
[null,null,null,null,null,null,null,null,""]
[null,null,null,null,null,null,null,null,""]
[null,null,null,null,null,null,null,null,""]
[null,null,null,null,null,null,null,null,""]
[null,null,null,null,null,null,null,null,""]
[null,null,null,null,null,null,null,null,""]
[null,null,null,null,null,null,null,null,""]
[null,null,null,null,null,null,null,null,""]
[null,null,null,null,null,null,null,null,""]
[null,null,null,null,null,null,null,null,""]
[null,null,null,null,null,null,null,null,""]
[null,null,null,null,null,null,null,null,""]
[null,null,null,null,null,null,null,null,""]
[null,null,null,null,null,null,null,null,""]
[null,null,null,null,null,null,null,null,""]
[null,null,null,null,null,null,null,null,""]
[null,null,null,null,null,null,null,null,""]
[null,null,null,null,null,null,null,null,""]
[null,null,null,null,null,null,null,null,""]
[null,null,null,null,null,null,null,null,""]
[null,null,null,null,null,null,null,null,""]
[null,null,null,null,null,null,null,null,""]
[null,null,null,null,null,null,null,null,""]
[null,null,null,null,null,null,null,null,""]
[null,null,null,null,null,null,null,null,""]
[null,null,null,null,null,null,null,null,""]
[null,null,null,null,null,null,null,null,""]
[null,null,null,null,null,null,null,null,""]
[null,null,null,null,null,null,null,null,""]
[null,null,null,null,null,null,null,null,""]
[null,null,null,null,null,null,null,null,{"$f":"IF(LEN(A707)=5,CONCATENATE(A707,\",\",D707,\",\",E707,\",\",F707,\",\",G707),IF(ISBLANK(A707),\"\",CONCATENATE(A707,\",\",D707,\",\",E707,\",\",IFERROR(INDEX(INDIRECT(LEFT(A707,5)&\"!\"&\"$AC$3:$AC$71\",2),MATCH(MID(A707,7,20),INDIRECT(LEFT(A707,5)&\"!\"&\"$AA$3:$AA$71\",2),0)),F707),\",\",G707)))","v":""}]
[null,null,null,null,null,null,null,null,""]
[null,null,null,null,null,null,null,null,""]
[null,null,null,null,null,null,null,null,""]
[null,null,null,null,null,null,null,null,""]
[null,null,null,null,null,null,null,null,""]
[null,null,null,null,null,null,null,null,""]
[null,null,null,null,null,null,null,null,""]
[null,null,null,null,null,null,null,null,""]
[null,null,null,null,null,null,null,null,""]
[null,null,null,null,null,null,null,null,""]
[null,null,null,null,null,null,null,null,""]
[null,null,null,null,null,null,null,null,""]
[null,null,null,null,null,null,null,null,""]
[null,null,null,null,null,null,null,null,""]
[null,null,null,null,null,null,null,null,""]
[null,null,null,null,null,null,null,null,""]
[null,null,null,null,null,null,null,null,""]
[null,null,null,null,null,null,null,null,""]
[null,null,null,null,null,null,null,null,""]
[null,null,null,null,null,null,null,null,""]
[null,null,null,null,null,null,null,null,""]
[null,null,null,null,null,null,null,null,""]
[null,null,null,null,null,null,null,null,""]
[null,null,null,null,null,null,null,null,""]
[null,null,null,null,null,null,null,null,""]
[null,null,null,null,null,null,null,null,""]
[null,null,null,null,null,null,null,null,""]
[null,null,null,null,null,null,null,null,""]
[null,null,null,null,null,null,null,null,""]
[null,null,null,null,null,null,null,null,""]
[null,null,null,null,null,null,null,null,""]
[null,null,null,null,null,null,null,null,""]
[null,null,null,null,null,null,null,null,""]
[null,null,null,null,null,null,null,null,""]
[null,null,null,null,null,null,null,null,""]
[null,null,null,null,null,null,null,null,""]
[null,null,null,null,null,null,null,null,""]
[null,null,null,null,null,null,null,null,""]
[null,null,null,null,null,null,null,null,""]
[null,null,null,null,null,null,null,null,""]
[null,null,null,null,null,null,null,null,""]
[null,null,null,null,null,null,null,null,""]
[null,null,null,null,null,null,null,null,""]
[null,null,null,null,null,null,null,null,""]
[null,null,null,null,null,null,null,null,""]
[null,null,null,null,null,null,null,null,""]
[null,null,null,null,null,null,null,null,""]
[null,null,null,null,null,null,null,null,""]
[null,null,null,null,null,null,null,null,""]
[null,null,null,null,null,null,null,null,""]
[null,null,null,null,null,null,null,null,""]
[null,null,null,null,null,null,null,null,""]
[null,null,null,null,null,null,null,null,""]
[null,null,null,null,null,null,null,null,""]
[null,null,null,null,null,null,null,null,""]
[null,null,null,null,null,null,null,null,""]
[null,null,null,null,null,null,null,null,""]
[null,null,null,null,null,null,null,null,""]
[null,null,null,null,null,null,null,null,""]
[null,null,null,null,null,null,null,null,""]
[null,null,null,null,null,null,null,null,""]
[null,null,null,null,null,null,null,null,""]
[null,null,null,null,null,null,null,null,""]
[null,null,null,null,null,null,null,null,{"$f":"IF(LEN(A771)=5,CONCATENATE(A771,\",\",D771,\",\",E771,\",\",F771,\",\",G771),IF(ISBLANK(A771),\"\",CONCATENATE(A771,\",\",D771,\",\",E771,\",\",IFERROR(INDEX(INDIRECT(LEFT(A771,5)&\"!\"&\"$AC$3:$AC$71\",2),MATCH(MID(A771,7,20),INDIRECT(LEFT(A771,5)&\"!\"&\"$AA$3:$AA$71\",2),0)),F771),\",\",G771)))","v":""}]
[null,null,null,null,null,null,null,null,""]
[null,null,null,null,null,null,null,null,""]
[null,null,null,null,null,null,null,null,""]
[null,null,null,null,null,null,null,null,""]
[null,null,null,null,null,null,null,null,""]
[null,null,null,null,null,null,null,null,""]
[null,null,null,null,null,null,null,null,""]
[null,null,null,null,null,null,null,null,""]
[null,null,null,null,null,null,null,null,""]
[null,null,null,null,null,null,null,null,""]
[null,null,null,null,null,null,null,null,""]
[null,null,null,null,null,null,null,null,""]
[null,null,null,null,null,null,null,null,""]
[null,null,null,null,null,null,null,null,""]
[null,null,null,null,null,null,null,null,""]
[null,null,null,null,null,null,null,null,""]
[null,null,null,null,null,null,null,null,""]
[null,null,null,null,null,null,null,null,""]
[null,null,null,null,null,null,null,null,""]
[null,null,null,null,null,null,null,null,""]
[null,null,null,null,null,null,null,null,""]
[null,null,null,null,null,null,null,null,""]
[null,null,null,null,null,null,null,null,""]
[null,null,null,null,null,null,null,null,""]
[null,null,null,null,null,null,null,null,""]
[null,null,null,null,null,null,null,null,""]
[null,null,null,null,null,null,null,null,""]
[null,null,null,null,null,null,null,null,""]
[null,null,null,null,null,null,null,null,""]
[null,null,null,null,null,null,null,null,""]
[null,null,null,null,null,null,null,null,""]
[null,null,null,null,null,null,null,null,""]
[null,null,null,null,null,null,null,null,""]
[null,null,null,null,null,null,null,null,""]
[null,null,null,null,null,null,null,null,""]
[null,null,null,null,null,null,null,null,""]
[null,null,null,null,null,null,null,null,""]
[null,null,null,null,null,null,null,null,""]
[null,null,null,null,null,null,null,null,""]
[null,null,null,null,null,null,null,null,""]
[null,null,null,null,null,null,null,null,""]
[null,null,null,null,null,null,null,null,""]
[null,null,null,null,null,null,null,null,""]
[null,null,null,null,null,null,null,null,""]
[null,null,null,null,null,null,null,null,""]
[null,null,null,null,null,null,null,null,""]
[null,null,null,null,null,null,null,null,""]
[null,null,null,null,null,null,null,null,""]
[null,null,null,null,null,null,null,null,""]
[null,null,null,null,null,null,null,null,""]
[null,null,null,null,null,null,null,null,""]
[null,null,null,null,null,null,null,null,""]
[null,null,null,null,null,null,null,null,""]
[null,null,null,null,null,null,null,null,""]
[null,null,null,null,null,null,null,null,""]
[null,null,null,null,null,null,null,null,""]
[null,null,null,null,null,null,null,null,""]
[null,null,null,null,null,null,null,null,""]
[null,null,null,null,null,null,null,null,""]
[null,null,null,null,null,null,null,null,""]
[null,null,null,null,null,null,null,null,""]
[null,null,null,null,null,null,null,null,""]
[null,null,null,null,null,null,null,null,""]
[null,null,null,null,null,null,null,null,{"$f":"IF(LEN(A835)=5,CONCATENATE(A835,\",\",D835,\",\",E835,\",\",F835,\",\",G835),IF(ISBLANK(A835),\"\",CONCATENATE(A835,\",\",D835,\",\",E835,\",\",IFERROR(INDEX(INDIRECT(LEFT(A835,5)&\"!\"&\"$AC$3:$AC$71\",2),MATCH(MID(A835,7,20),INDIRECT(LEFT(A835,5)&\"!\"&\"$AA$3:$AA$71\",2),0)),F835),\",\",G835)))","v":""}]
[null,null,null,null,null,null,null,null,""]
[null,null,null,null,null,null,null,null,""]
[null,null,null,null,null,null,null,null,""]
[null,null,null,null,null,null,null,null,""]
[null,null,null,null,null,null,null,null,""]
[null,null,null,null,null,null,null,null,""]
[null,null,null,null,null,null,null,null,""]
[null,null,null,null,null,null,null,null,""]
[null,null,null,null,null,null,null,null,""]
[null,null,null,null,null,null,null,null,""]
[null,null,null,null,null,null,null,null,""]
[null,null,null,null,null,null,null,null,""]
[null,null,null,null,null,null,null,null,""]
[null,null,null,null,null,null,null,null,""]
[null,null,null,null,null,null,null,null,""]
[null,null,null,null,null,null,null,null,""]
[null,null,null,null,null,null,null,null,""]
[null,null,null,null,null,null,null,null,""]
[null,null,null,null,null,null,null,null,""]
[null,null,null,null,null,null,null,null,""]
[null,null,null,null,null,null,null,null,""]
[null,null,null,null,null,null,null,null,""]
[null,null,null,null,null,null,null,null,""]
[null,null,null,null,null,null,null,null,""]
[null,null,null,null,null,null,null,null,""]
[null,null,null,null,null,null,null,null,""]
[null,null,null,null,null,null,null,null,""]
[null,null,null,null,null,null,null,null,""]
[null,null,null,null,null,null,null,null,""]
[null,null,null,null,null,null,null,null,""]
[null,null,null,null,null,null,null,null,""]
[null,null,null,null,null,null,null,null,""]
[null,null,null,null,null,null,null,null,""]
[null,null,null,null,null,null,null,null,""]
[null,null,null,null,null,null,null,null,""]
[null,null,null,null,null,null,null,null,""]
[null,null,null,null,null,null,null,null,""]
[null,null,null,null,null,null,null,null,""]
[null,null,null,null,null,null,null,null,""]
[null,null,null,null,null,null,null,null,""]
[null,null,null,null,null,null,null,null,""]
[null,null,null,null,null,null,null,null,""]
[null,null,null,null,null,null,null,null,""]
[null,null,null,null,null,null,null,null,""]
[null,null,null,null,null,null,null,null,""]
[null,null,null,null,null,null,null,null,""]
[null,null,null,null,null,null,null,null,""]
[null,null,null,null,null,null,null,null,""]
[null,null,null,null,null,null,null,null,""]
[null,null,null,null,null,null,null,null,""]
[null,null,null,null,null,null,null,null,""]
[null,null,null,null,null,null,null,null,""]
[null,null,null,null,null,null,null,null,""]
[null,null,null,null,null,null,null,null,""]
[null,null,null,null,null,null,null,null,""]
[null,null,null,null,null,null,null,null,""]
[null,null,null,null,null,null,null,null,""]
[null,null,null,null,null,null,null,null,""]
[null,null,null,null,null,null,null,null,""]
[null,null,null,null,null,null,null,null,""]
[null,null,null,null,null,null,null,null,""]
[null,null,null,null,null,null,null,null,""]
[null,null,null,null,null,null,null,null,""]
[null,null,null,null,null,null,null,null,{"$f":"IF(LEN(A899)=5,CONCATENATE(A899,\",\",D899,\",\",E899,\",\",F899,\",\",G899),IF(ISBLANK(A899),\"\",CONCATENATE(A899,\",\",D899,\",\",E899,\",\",IFERROR(INDEX(INDIRECT(LEFT(A899,5)&\"!\"&\"$AC$3:$AC$71\",2),MATCH(MID(A899,7,20),INDIRECT(LEFT(A899,5)&\"!\"&\"$AA$3:$AA$71\",2),0)),F899),\",\",G899)))","v":""}]
[null,null,null,null,null,null,null,null,""]
[null,null,null,null,null,null,null,null,""]
[null,null,null,null,null,null,null,null,""]
[null,null,null,null,null,null,null,null,""]
[null,null,null,null,null,null,null,null,""]
[null,null,null,null,null,null,null,null,""]
[null,null,null,null,null,null,null,null,""]
[null,null,null,null,null,null,null,null,""]
[null,null,null,null,null,null,null,null,""]
[null,null,null,null,null,null,null,null,""]
[null,null,null,null,null,null,null,null,""]
[null,null,null,null,null,null,null,null,""]
[null,null,null,null,null,null,null,null,""]
[null,null,null,null,null,null,null,null,""]
[null,null,null,null,null,null,null,null,""]
[null,null,null,null,null,null,null,null,""]
[null,null,null,null,null,null,null,null,""]
[null,null,null,null,null,null,null,null,""]
[null,null,null,null,null,null,null,null,""]
[null,null,null,null,null,null,null,null,""]
[null,null,null,null,null,null,null,null,""]
[null,null,null,null,null,null,null,null,""]
[null,null,null,null,null,null,null,null,""]
[null,null,null,null,null,null,null,null,""]
[null,null,null,null,null,null,null,null,""]
[null,null,null,null,null,null,null,null,""]
[null,null,null,null,null,null,null,null,""]
[null,null,null,null,null,null,null,null,""]
[null,null,null,null,null,null,null,null,""]
[null,null,null,null,null,null,null,null,""]
[null,null,null,null,null,null,null,null,""]
[null,null,null,null,null,null,null,null,""]
[null,null,null,null,null,null,null,null,""]
[null,null,null,null,null,null,null,null,""]
[null,null,null,null,null,null,null,null,""]
[null,null,null,null,null,null,null,null,""]
[null,null,null,null,null,null,null,null,""]
[null,null,null,null,null,null,null,null,""]
[null,null,null,null,null,null,null,null,""]
[null,null,null,null,null,null,null,null,""]
[null,null,null,null,null,null,null,null,""]
[null,null,null,null,null,null,null,null,""]
[null,null,null,null,null,null,null,null,""]
[null,null,null,null,null,null,null,null,""]
[null,null,null,null,null,null,null,null,""]
[null,null,null,null,null,null,null,null,""]
[null,null,null,null,null,null,null,null,""]
[null,null,null,null,null,null,null,null,""]
[null,null,null,null,null,null,null,null,""]
[null,null,null,null,null,null,null,null,""]
[null,null,null,null,null,null,null,null,""]
[null,null,null,null,null,null,null,null,""]
[null,null,null,null,null,null,null,null,""]
[null,null,null,null,null,null,null,null,""]
[null,null,null,null,null,null,null,null,""]
[null,null,null,null,null,null,null,null,""]
[null,null,null,null,null,null,null,null,""]
[null,null,null,null,null,null,null,null,""]
[null,null,null,null,null,null,null,null,""]
[null,null,null,null,null,null,null,null,""]
[null,null,null,null,null,null,null,null,""]
[null,null,null,null,null,null,null,null,""]
[null,null,null,null,null,null,null,null,""]
[null,null,null,null,null,null,null,null,{"$f":"IF(LEN(A963)=5,CONCATENATE(A963,\",\",D963,\",\",E963,\",\",F963,\",\",G963),IF(ISBLANK(A963),\"\",CONCATENATE(A963,\",\",D963,\",\",E963,\",\",IFERROR(INDEX(INDIRECT(LEFT(A963,5)&\"!\"&\"$AC$3:$AC$71\",2),MATCH(MID(A963,7,20),INDIRECT(LEFT(A963,5)&\"!\"&\"$AA$3:$AA$71\",2),0)),F963),\",\",G963)))","v":""}]
[null,null,null,null,null,null,null,null,""]
[null,null,null,null,null,null,null,null,""]
[null,null,null,null,null,null,null,null,""]
[null,null,null,null,null,null,null,null,""]
[null,null,null,null,null,null,null,null,""]
[null,null,null,null,null,null,null,null,""]
[null,null,null,null,null,null,null,null,""]
[null,null,null,null,null,null,null,null,""]
[null,null,null,null,null,null,null,null,""]
[null,null,null,null,null,null,null,null,""]
[null,null,null,null,null,null,null,null,""]
[null,null,null,null,null,null,null,null,""]
[null,null,null,null,null,null,null,null,""]
[null,null,null,null,null,null,null,null,""]
[null,null,null,null,null,null,null,null,""]
[null,null,null,null,null,null,null,null,""]
[null,null,null,null,null,null,null,null,""]
[null,null,null,null,null,null,null,null,""]
[null,null,null,null,null,null,null,null,""]
[null,null,null,null,null,null,null,null,""]
[null,null,null,null,null,null,null,null,""]
[null,null,null,null,null,null,null,null,""]
[null,null,null,null,null,null,null,null,""]
[null,null,null,null,null,null,null,null,""]
[null,null,null,null,null,null,null,null,""]
[null,null,null,null,null,null,null,null,""]
[null,null,null,null,null,null,null,null,""]
[null,null,null,null,null,null,null,null,""]
[null,null,null,null,null,null,null,null,""]
[null,null,null,null,null,null,null,null,""]
[null,null,null,null,null,null,null,null,""]
[null,null,null,null,null,null,null,null,""]
[null,null,null,null,null,null,null,null,""]
[null,null,null,null,null,null,null,null,""]
[null,null,null,null,null,null,null,null,""]
[null,null,null,null,null,null,null,null,""]
[null,null,null,null,null,null,null,null,""]

{"sheet":"CORNER NAME","index":2,"n_rows":71,"n_cols":56,"rows_kept":71,"cut":false,"hidden":false,"merged":[[0,52,0,55],[1,35,1,39],[1,49,1,50],[2,46,2,47],[18,24,18,25],[19,24,19,25],[3,23,4,25],[3,46,3,47],[0,1,0,5],[0,7,0,18]]}
[null,"TABLE 1. POINTS",null,null,null,null,null,"TABLE 2. SEGMENTS",null,null,null,null,null,null,null,null,null,null,null,null,null,null,null,null,null,null,null,null,null,null,null,null,null,null,null,null,null,null,null,null,null,null,null,null,null,null,null,null,null,null,null,null,"TABLE 3. OUTPUT"]
[null,"Point","Station","Offset (ft)","Elevation (ft)","EX. / PR.",null,"From","To","Type","Max Slope","Min Slope","+/-","MAX","MIN","Slope","Slope","Length","Elev. Diff.",null,{"$f":"SUMIF(U3:U45,\"<>\")/SUMIF(V3:V45,\"<>\")","v":{"$error":"#DIV/0!"}},null,null,null,null,null,"Point","Point as is","Elevation ","Station","Offset","Northing","Easting","Row Index","Point Dup.","Seg. Dup.",null,null,null,null,"Random Seed","Elev. (no round)","Slopes ",null,"Rem. Null",null,null,null,null,"Output",null,null,"Point","STATION","OFFSET","ELEVATION"]
[null,null,{"$f":"IF(ISBLANK(B3),\"\",CONCATENATE(LEFT(IF(AH3=\"\",\"\",INDEX(CADD_DATA!$1:$1048576,AH3,2)),SEARCH(\"+\",IF(AH3=\"\",\"\",INDEX(CADD_DATA!$1:$1048576,AH3,2)))-1)&RIGHT(IF(AH3=\"\",\"\",INDEX(CADD_DATA!$1:$1048576,AH3,2)),5)))","v":""},{"$f":"IF(AH3=\"\",\"\",INDEX(CADD_DATA!$1:$1048576,AH3,3))","v":""},null,"PR",null,null,null,null,null,null,null,{"$f":"IF(AND(ISBLANK(H3),ISBLANK(I3)),0,IF(M3=\"-\",-1*IF(L3=\"\",IFERROR(VLOOKUP(J3,$X$11:$Z$16,3,FALSE),0)/100,L3),IF(K3=\"\",IFERROR(VLOOKUP(J3,$X$11:$Z$16,2,FALSE),0)/100,K3)))","v":0},{"$f":"IF(AND(ISBLANK(H3),ISBLANK(I3)),0,IF(M3=\"-\",-1*IF(K3=\"\",IFERROR(VLOOKUP(J3,$X$11:$Z$16,2,FALSE),0)/100,K3),IF(L3=\"\",IFERROR(VLOOKUP(J3,$X$11:$Z$16,3,FALSE),0)/100,L3)))","v":0},{"$f":"IF(AND(ISBLANK(H3),ISBLANK(I3)),0,(IF((ISBLANK(M3)),(ABS((INDEX($E$3:$E$71,MATCH(I3,$B$3:$B$71,0))-INDEX($E$3:$E$71,MATCH(H3,$B$3:$B$71,0)))/R3)),((INDEX($E$3:$E$71,MATCH(I3,$B$3:$B$71,0))-INDEX($E$3:$E$71,MATCH(H3,$B$3:$B$71,0)))/R3))))","v":0},{"$f":"ROUND(IF(AND(ISBLANK(H3),ISBLANK(I3)),0,((INDEX($E$3:$E$71,MATCH(I3,$B$3:$B$71,0))-INDEX($E$3:$E$71,MATCH(H3,$B$3:$B$71,0)))/R3)),4)","v":0},{"$f":"IF(AND(ISBLANK(H3),ISBLANK(I3)),\" \",SQRT(((VLOOKUP(I3,$AB$3:$AG$71,5,FALSE)-VLOOKUP(H3,$AB$3:$AG$71,5,FALSE))^2)+((VLOOKUP(I3,$AB$3:$AG$71,6,FALSE)-VLOOKUP(H3,$AB$3:$AG$71,6,FALSE))^2)))","v":" "},{"$f":"IF(AND(ISBLANK(H3),ISBLANK(I3)),\" \",P3*R3)","v":" "},null,{"$f":"IF(AND(ISBLANK(H3),ISBLANK(I3)),\"\",ABS(P3*R3)^2)","v":""},{"$f":"IF(AND(ISBLANK(H3),ISBLANK(I3)),\"\",R3)","v":""},null,null,null,null,{"$f":"IF(ISBLANK(B3),\"\",TEXT(B3,\"0\"))","v":""},{"$f":"IF(B3=\"\",\"\",B3)","v":""},{"$f":"IF(E3=0,\"\",E3)","v":""},{"$f":"IF(AH3=\"\",\"\",INDEX(CADD_DATA!$1:$1048576,AH3,2))","v":""},{"$f":"IF(AH3=\"\",\"\",INDEX(CADD_DATA!$1:$1048576,AH3,3))","v":""},{"$f":"IF(AH3=\"\",\"\",INDEX(CADD_DATA!$1:$1048576,AH3,4))","v":""},{"$f":"IF(AH3=\"\",\"\",INDEX(CADD_DATA!$1:$1048576,AH3,5))","v":""},{"$f":"IF(B3=\"\",\"\",MATCH($AU$4&\"_\"&B3,CADD_DATA!A:A,0))","v":""},{"$f":"COUNTIF($B$3:$B$71,B3)","v":0},{"$f":"CONCATENATE(IF(LEN(H3)=1,\"0\"&H3,H3),IF(LEN(I3)=1,\"0\"&I3,I3))","v":""},{"$f":"CONCATENATE(IF(LEN(I3)=1,\"0\"&I3,I3),IF(LEN(H3)=1,\"0\"&H3,H3))","v":""},{"$f":"IF(AND(ISBLANK(H3),ISBLANK(I3)),\"\",COUNTIF($AJ$3:$AJ$71,AJ3))","v":""},{"$f":"IF(AND(ISBLANK(H3),ISBLANK(I3)),\"\",COUNTIF($AK$3:$AK$71,AJ3))","v":""},{"$f":"IF(AND(ISBLANK(H3),ISBLANK(I3)),0,SUM(AL3:AM3))","v":0},{"$f":"ROUND(RAND()*(MAX($E$47:$E$71)-MIN($E$47:$E$71))+MIN($E$47:$E$71),2)","v":0},625.09918977852305,{"$f":"ROUND(IF(AND(ISBLANK(H3),ISBLANK(I3)),0,((INDEX($AP$3:$AP$71,MATCH(I3,$B$3:$B$71,0))-INDEX($AP$3:$AP$71,MATCH(H3,$B$3:$B$71,0)))/R3)),4)","v":0},{"$f":"IF(IF(M3=\"\",AND(ABS(AQ3)>=ABS(O3),ABS(AQ3)<=N3),AND(AQ3+100<=N3+100,AQ3+100>=O3+100))=TRUE,TRUE,FALSE)","v":true},{"$f":"IF(B3=\"\",0,E3)","v":0},null,"ADA CORNER",null,null,"STATION","OFFSET",null,{"$f":"AA3","v":""},{"$f":"IF($BB$2=\"NORTHING\",INDEX($AF$3:$AF$71,MATCH(BA3,$AA$3:$AA$71,0)),IF($BB$2=\"STATION\",INDEX($AD$3:$AD$71,MATCH(BA3,$AA$3:$AA$71,0)),\"\"))","v":""},{"$f":"IF($BC$2=\"EASTING\",INDEX($AG$3:$AG$71,MATCH(BA3,$AA$3:$AA$71,0)),IF($BC$2=\"OFFSET\",INDEX($AE$3:$AE$71,MATCH(BA3,$AA$3:$AA$71,0)),\"\"))","v":""},{"$f":"IF(BA3=\"\",\"\",AC3)","v":""}]
[null,null,{"$f":"IF(ISBLANK(B4),\"\",CONCATENATE(LEFT(IF(AH4=\"\",\"\",INDEX(CADD_DATA!$1:$1048576,AH4,2)),SEARCH(\"+\",IF(AH4=\"\",\"\",INDEX(CADD_DATA!$1:$1048576,AH4,2)))-1)&RIGHT(IF(AH4=\"\",\"\",INDEX(CADD_DATA!$1:$1048576,AH4,2)),5)))","v":""},{"$f":"IF(AH4=\"\",\"\",INDEX(CADD_DATA!$1:$1048576,AH4,3))","v":""},null,"PR",null,null,null,null,null,null,null,0,0,{"$f":"IF(AND(ISBLANK(H4),ISBLANK(I4)),0,(IF((ISBLANK(M4)),(ABS((INDEX($E$3:$E$71,MATCH(I4,$B$3:$B$71,0))-INDEX($E$3:$E$71,MATCH(H4,$B$3:$B$71,0)))/R4)),((INDEX($E$3:$E$71,MATCH(I4,$B$3:$B$71,0))-INDEX($E$3:$E$71,MATCH(H4,$B$3:$B$71,0)))/R4))))","v":0},{"$f":"ROUND(IF(AND(ISBLANK(H4),ISBLANK(I4)),0,((INDEX($E$3:$E$71,MATCH(I4,$B$3:$B$71,0))-INDEX($E$3:$E$71,MATCH(H4,$B$3:$B$71,0)))/R4)),4)","v":0},{"$f":"IF(AND(ISBLANK(H4),ISBLANK(I4)),\" \",SQRT(((VLOOKUP(I4,$AB$3:$AG$71,5,FALSE)-VLOOKUP(H4,$AB$3:$AG$71,5,FALSE))^2)+((VLOOKUP(I4,$AB$3:$AG$71,6,FALSE)-VLOOKUP(H4,$AB$3:$AG$71,6,FALSE))^2)))","v":" "}," ",null,{"$f":"IF(AND(ISBLANK(H4),ISBLANK(I4)),\"\",ABS(P4*R4)^2)","v":""},"",null,{"$f":"IF(COUNTIF(AR3:AR45,FALSE)>0,\"VIOLATES USER SPECIFIED PARAMETERS, SEE MANUAL (STEP 4)\", \"MEETS USER SPECIFIED PARAMETERS,\nCHECK FOR ROUNDING ERROR\")","v":"MEETS USER SPECIFIED PARAMETERS,\nCHECK FOR ROUNDING ERROR"},null,null,{"$f":"IF(ISBLANK(B4),\"\",TEXT(B4,\"0\"))","v":""},{"$f":"IF(B4=\"\",\"\",B4)","v":""},"",{"$f":"IF(AH4=\"\",\"\",INDEX(CADD_DATA!$1:$1048576,AH4,2))","v":""},{"$f":"IF(AH4=\"\",\"\",INDEX(CADD_DATA!$1:$1048576,AH4,3))","v":""},{"$f":"IF(AH4=\"\",\"\",INDEX(CADD_DATA!$1:$1048576,AH4,4))","v":""},{"$f":"IF(AH4=\"\",\"\",INDEX(CADD_DATA!$1:$1048576,AH4,5))","v":""},{"$f":"IF(B4=\"\",\"\",MATCH($AU$4&\"_\"&B4,CADD_DATA!A:A,0))","v":""},0,{"$f":"CONCATENATE(IF(LEN(H4)=1,\"0\"&H4,H4),IF(LEN(I4)=1,\"0\"&I4,I4))","v":""},{"$f":"CONCATENATE(IF(LEN(I4)=1,\"0\"&I4,I4),IF(LEN(H4)=1,\"0\"&H4,H4))","v":""},"",{"$f":"IF(AND(ISBLANK(H4),ISBLANK(I4)),\"\",COUNTIF($AK$3:$AK$71,AJ4))","v":""},{"$f":"IF(AND(ISBLANK(H4),ISBLANK(I4)),0,SUM(AL4:AM4))","v":0},{"$f":"ROUND(RAND()*(MAX($E$47:$E$71)-MIN($E$47:$E$71))+MIN($E$47:$E$71),2)","v":0},625.11969923403001,0,true,{"$f":"IF(B4=\"\",0,E4)","v":0},null,{"$f":"MID(CELL(\"filename\",B1),FIND(\"]\",CELL(\"filename\",B1))+1,10)","v":"CORNER NAM"},null,null,"NORTHING","EASTING",null,"","","",{"$f":"IF(BA4=\"\",\"\",AC4)","v":""}]
[null,null,{"$f":"IF(ISBLANK(B5),\"\",CONCATENATE(LEFT(IF(AH5=\"\",\"\",INDEX(CADD_DATA!$1:$1048576,AH5,2)),SEARCH(\"+\",IF(AH5=\"\",\"\",INDEX(CADD_DATA!$1:$1048576,AH5,2)))-1)&RIGHT(IF(AH5=\"\",\"\",INDEX(CADD_DATA!$1:$1048576,AH5,2)),5)))","v":""},{"$f":"IF(AH5=\"\",\"\",INDEX(CADD_DATA!$1:$1048576,AH5,3))","v":""},null,"PR",null,null,null,null,null,null,null,0,0,0,0," "," ",null,"","",null,null,null,null,"","","",{"$f":"IF(AH5=\"\",\"\",INDEX(CADD_DATA!$1:$1048576,AH5,2))","v":""},{"$f":"IF(AH5=\"\",\"\",INDEX(CADD_DATA!$1:$1048576,AH5,3))","v":""},{"$f":"IF(AH5=\"\",\"\",INDEX(CADD_DATA!$1:$1048576,AH5,4))","v":""},{"$f":"IF(AH5=\"\",\"\",INDEX(CADD_DATA!$1:$1048576,AH5,5))","v":""},{"$f":"IF(B5=\"\",\"\",MATCH($AU$4&\"_\"&B5,CADD_DATA!A:A,0))","v":""},0,"","","","",{"$f":"IF(AND(ISBLANK(H5),ISBLANK(I5)),0,SUM(AL5:AM5))","v":0},0,625.05989561508295,0,true,0,null,null,null,null,null,null,null,"","","",""]
[null,null,{"$f":"IF(ISBLANK(B6),\"\",CONCATENATE(LEFT(IF(AH6=\"\",\"\",INDEX(CADD_DATA!$1:$1048576,AH6,2)),SEARCH(\"+\",IF(AH6=\"\",\"\",INDEX(CADD_DATA!$1:$1048576,AH6,2)))-1)&RIGHT(IF(AH6=\"\",\"\",INDEX(CADD_DATA!$1:$1048576,AH6,2)),5)))","v":""},{"$f":"IF(AH6=\"\",\"\",INDEX(CADD_DATA!$1:$1048576,AH6,3))","v":""},null,"PR",null,null,null,null,null,null,null,0,0,0,0," "," ",null,"","",null,null,null,null,"","","",{"$f":"IF(AH6=\"\",\"\",INDEX(CADD_DATA!$1:$1048576,AH6,2))","v":""},{"$f":"IF(AH6=\"\",\"\",INDEX(CADD_DATA!$1:$1048576,AH6,3))","v":""},{"$f":"IF(AH6=\"\",\"\",INDEX(CADD_DATA!$1:$1048576,AH6,4))","v":""},{"$f":"IF(AH6=\"\",\"\",INDEX(CADD_DATA!$1:$1048576,AH6,5))","v":""},{"$f":"IF(B6=\"\",\"\",MATCH($AU$4&\"_\"&B6,CADD_DATA!A:A,0))","v":""},0,"","","","",{"$f":"IF(AND(ISBLANK(H6),ISBLANK(I6)),0,SUM(AL6:AM6))","v":0},0,624.92999999999995,0,true,0,null,null,null,null,null,null,null,"","","",""]
[null,null,{"$f":"IF(ISBLANK(B7),\"\",CONCATENATE(LEFT(IF(AH7=\"\",\"\",INDEX(CADD_DATA!$1:$1048576,AH7,2)),SEARCH(\"+\",IF(AH7=\"\",\"\",INDEX(CADD_DATA!$1:$1048576,AH7,2)))-1)&RIGHT(IF(AH7=\"\",\"\",INDEX(CADD_DATA!$1:$1048576,AH7,2)),5)))","v":""},{"$f":"IF(AH7=\"\",\"\",INDEX(CADD_DATA!$1:$1048576,AH7,3))","v":""},null,"PR",null,null,null,null,null,null,null,0,0,0,0," "," ",null,"","",null,null,null,null,"","","",{"$f":"IF(AH7=\"\",\"\",INDEX(CADD_DATA!$1:$1048576,AH7,2))","v":""},{"$f":"IF(AH7=\"\",\"\",INDEX(CADD_DATA!$1:$1048576,AH7,3))","v":""},{"$f":"IF(AH7=\"\",\"\",INDEX(CADD_DATA!$1:$1048576,AH7,4))","v":""},{"$f":"IF(AH7=\"\",\"\",INDEX(CADD_DATA!$1:$1048576,AH7,5))","v":""},{"$f":"IF(B7=\"\",\"\",MATCH($AU$4&\"_\"&B7,CADD_DATA!A:A,0))","v":""},0,{"$f":"CONCATENATE(IF(LEN(H7)=1,\"0\"&H7,H7),IF(LEN(I7)=1,\"0\"&I7,I7))","v":""},{"$f":"CONCATENATE(IF(LEN(I7)=1,\"0\"&I7,I7),IF(LEN(H7)=1,\"0\"&H7,H7))","v":""},"","",{"$f":"IF(AND(ISBLANK(H7),ISBLANK(I7)),0,SUM(AL7:AM7))","v":0},0,625.17999999999995,0,true,0,null,null,null,null,null,null,null,"","","",""]
[null,null,{"$f":"IF(ISBLANK(B8),\"\",CONCATENATE(LEFT(IF(AH8=\"\",\"\",INDEX(CADD_DATA!$1:$1048576,AH8,2)),SEARCH(\"+\",IF(AH8=\"\",\"\",INDEX(CADD_DATA!$1:$1048576,AH8,2)))-1)&RIGHT(IF(AH8=\"\",\"\",INDEX(CADD_DATA!$1:$1048576,AH8,2)),5)))","v":""},{"$f":"IF(AH8=\"\",\"\",INDEX(CADD_DATA!$1:$1048576,AH8,3))","v":""},null,"PR",null,null,null,null,null,null,null,0,0,0,0," "," ",null,"","",null,null,null,null,"","","",{"$f":"IF(AH8=\"\",\"\",INDEX(CADD_DATA!$1:$1048576,AH8,2))","v":""},{"$f":"IF(AH8=\"\",\"\",INDEX(CADD_DATA!$1:$1048576,AH8,3))","v":""},{"$f":"IF(AH8=\"\",\"\",INDEX(CADD_DATA!$1:$1048576,AH8,4))","v":""},{"$f":"IF(AH8=\"\",\"\",INDEX(CADD_DATA!$1:$1048576,AH8,5))","v":""},{"$f":"IF(B8=\"\",\"\",MATCH($AU$4&\"_\"&B8,CADD_DATA!A:A,0))","v":""},0,"","","","",0,0,625.08000000000004,0,true,0,null,null,null,null,null,null,null,"","","",""]
[null,null,{"$f":"IF(ISBLANK(B9),\"\",CONCATENATE(LEFT(IF(AH9=\"\",\"\",INDEX(CADD_DATA!$1:$1048576,AH9,2)),SEARCH(\"+\",IF(AH9=\"\",\"\",INDEX(CADD_DATA!$1:$1048576,AH9,2)))-1)&RIGHT(IF(AH9=\"\",\"\",INDEX(CADD_DATA!$1:$1048576,AH9,2)),5)))","v":""},{"$f":"IF(AH9=\"\",\"\",INDEX(CADD_DATA!$1:$1048576,AH9,3))","v":""},null,"PR",null,null,null,null,null,null,null,0,0,0,0," "," ",null,"","",null,null,null,null,"","","",{"$f":"IF(AH9=\"\",\"\",INDEX(CADD_DATA!$1:$1048576,AH9,2))","v":""},{"$f":"IF(AH9=\"\",\"\",INDEX(CADD_DATA!$1:$1048576,AH9,3))","v":""},{"$f":"IF(AH9=\"\",\"\",INDEX(CADD_DATA!$1:$1048576,AH9,4))","v":""},{"$f":"IF(AH9=\"\",\"\",INDEX(CADD_DATA!$1:$1048576,AH9,5))","v":""},{"$f":"IF(B9=\"\",\"\",MATCH($AU$4&\"_\"&B9,CADD_DATA!A:A,0))","v":""},0,"","","","",0,0,625.08000000000004,0,true,0,null,null,null,null,null,null,null,"","","",""]
[null,null,{"$f":"IF(ISBLANK(B10),\"\",CONCATENATE(LEFT(IF(AH10=\"\",\"\",INDEX(CADD_DATA!$1:$1048576,AH10,2)),SEARCH(\"+\",IF(AH10=\"\",\"\",INDEX(CADD_DATA!$1:$1048576,AH10,2)))-1)&RIGHT(IF(AH10=\"\",\"\",INDEX(CADD_DATA!$1:$1048576,AH10,2)),5)))","v":""},{"$f":"IF(AH10=\"\",\"\",INDEX(CADD_DATA!$1:$1048576,AH10,3))","v":""},null,"PR",null,null,null,null,null,null,null,0,0,0,0," "," ",null,"","",null,"Category","Max","Min","","","",{"$f":"IF(AH10=\"\",\"\",INDEX(CADD_DATA!$1:$1048576,AH10,2))","v":""},{"$f":"IF(AH10=\"\",\"\",INDEX(CADD_DATA!$1:$1048576,AH10,3))","v":""},{"$f":"IF(AH10=\"\",\"\",INDEX(CADD_DATA!$1:$1048576,AH10,4))","v":""},{"$f":"IF(AH10=\"\",\"\",INDEX(CADD_DATA!$1:$1048576,AH10,5))","v":""},{"$f":"IF(B10=\"\",\"\",MATCH($AU$4&\"_\"&B10,CADD_DATA!A:A,0))","v":""},0,"","","","",0,0,624.94000000000005,0,true,0,null,null,null,null,null,null,null,"","","",""]
[null,null,{"$f":"IF(ISBLANK(B11),\"\",CONCATENATE(LEFT(IF(AH11=\"\",\"\",INDEX(CADD_DATA!$1:$1048576,AH11,2)),SEARCH(\"+\",IF(AH11=\"\",\"\",INDEX(CADD_DATA!$1:$1048576,AH11,2)))-1)&RIGHT(IF(AH11=\"\",\"\",INDEX(CADD_DATA!$1:$1048576,AH11,2)),5)))","v":""},{"$f":"IF(AH11=\"\",\"\",INDEX(CADD_DATA!$1:$1048576,AH11,3))","v":""},null,"PR",null,null,null,null,null,null,null,0,0,0,0," "," ",null,"","",null,"Cross Slope",2,0,"","","",{"$f":"IF(AH11=\"\",\"\",INDEX(CADD_DATA!$1:$1048576,AH11,2))","v":""},{"$f":"IF(AH11=\"\",\"\",INDEX(CADD_DATA!$1:$1048576,AH11,3))","v":""},{"$f":"IF(AH11=\"\",\"\",INDEX(CADD_DATA!$1:$1048576,AH11,4))","v":""},{"$f":"IF(AH11=\"\",\"\",INDEX(CADD_DATA!$1:$1048576,AH11,5))","v":""},{"$f":"IF(B11=\"\",\"\",MATCH($AU$4&\"_\"&B11,CADD_DATA!A:A,0))","v":""},0,"","","","",0,0,625.09,0,true,0,null,null,null,null,null,null,null,"","","",""]
[null,null,{"$f":"IF(ISBLANK(B12),\"\",CONCATENATE(LEFT(IF(AH12=\"\",\"\",INDEX(CADD_DATA!$1:$1048576,AH12,2)),SEARCH(\"+\",IF(AH12=\"\",\"\",INDEX(CADD_DATA!$1:$1048576,AH12,2)))-1)&RIGHT(IF(AH12=\"\",\"\",INDEX(CADD_DATA!$1:$1048576,AH12,2)),5)))","v":""},{"$f":"IF(AH12=\"\",\"\",INDEX(CADD_DATA!$1:$1048576,AH12,3))","v":""},null,"PR",null,null,null,null,null,null,null,0,0,0,0," "," ",null,"","",null,"Depressed Curb",7.2,7.1,"","","",{"$f":"IF(AH12=\"\",\"\",INDEX(CADD_DATA!$1:$1048576,AH12,2))","v":""},{"$f":"IF(AH12=\"\",\"\",INDEX(CADD_DATA!$1:$1048576,AH12,3))","v":""},{"$f":"IF(AH12=\"\",\"\",INDEX(CADD_DATA!$1:$1048576,AH12,4))","v":""},{"$f":"IF(AH12=\"\",\"\",INDEX(CADD_DATA!$1:$1048576,AH12,5))","v":""},{"$f":"IF(B12=\"\",\"\",MATCH($AU$4&\"_\"&B12,CADD_DATA!A:A,0))","v":""},0,"","","","",0,0,625.11,0,true,0,null,null,null,null,null,null,null,"","","",""]
[null,null,{"$f":"IF(ISBLANK(B13),\"\",CONCATENATE(LEFT(IF(AH13=\"\",\"\",INDEX(CADD_DATA!$1:$1048576,AH13,2)),SEARCH(\"+\",IF(AH13=\"\",\"\",INDEX(CADD_DATA!$1:$1048576,AH13,2)))-1)&RIGHT(IF(AH13=\"\",\"\",INDEX(CADD_DATA!$1:$1048576,AH13,2)),5)))","v":""},{"$f":"IF(AH13=\"\",\"\",INDEX(CADD_DATA!$1:$1048576,AH13,3))","v":""},null,"PR",null,null,null,null,null,null,null,0,0,0,0," "," ",null,"","",null,"Gutter Flag",5.0999999999999996,4.9000000000000004,"","","",{"$f":"IF(AH13=\"\",\"\",INDEX(CADD_DATA!$1:$1048576,AH13,2))","v":""},{"$f":"IF(AH13=\"\",\"\",INDEX(CADD_DATA!$1:$1048576,AH13,3))","v":""},{"$f":"IF(AH13=\"\",\"\",INDEX(CADD_DATA!$1:$1048576,AH13,4))","v":""},{"$f":"IF(AH13=\"\",\"\",INDEX(CADD_DATA!$1:$1048576,AH13,5))","v":""},{"$f":"IF(B13=\"\",\"\",MATCH($AU$4&\"_\"&B13,CADD_DATA!A:A,0))","v":""},0,"","","","",0,0,624.91999999999996,0,true,0,null,null,null,null,null,null,null,"","","",""]
[null,null,{"$f":"IF(ISBLANK(B14),\"\",CONCATENATE(LEFT(IF(AH14=\"\",\"\",INDEX(CADD_DATA!$1:$1048576,AH14,2)),SEARCH(\"+\",IF(AH14=\"\",\"\",INDEX(CADD_DATA!$1:$1048576,AH14,2)))-1)&RIGHT(IF(AH14=\"\",\"\",INDEX(CADD_DATA!$1:$1048576,AH14,2)),5)))","v":""},{"$f":"IF(AH14=\"\",\"\",INDEX(CADD_DATA!$1:$1048576,AH14,3))","v":""},null,"PR",null,null,null,null,null,null,null,0,0,0,0," "," ",null,"","",null,"Landing",2,0,"","","",{"$f":"IF(AH14=\"\",\"\",INDEX(CADD_DATA!$1:$1048576,AH14,2))","v":""},{"$f":"IF(AH14=\"\",\"\",INDEX(CADD_DATA!$1:$1048576,AH14,3))","v":""},{"$f":"IF(AH14=\"\",\"\",INDEX(CADD_DATA!$1:$1048576,AH14,4))","v":""},{"$f":"IF(AH14=\"\",\"\",INDEX(CADD_DATA!$1:$1048576,AH14,5))","v":""},{"$f":"IF(B14=\"\",\"\",MATCH($AU$4&\"_\"&B14,CADD_DATA!A:A,0))","v":""},0,"","","","",0,0,625.15,0,true,0,null,null,null,null,null,null,null,"","","",""]
[null,null,{"$f":"IF(ISBLANK(B15),\"\",CONCATENATE(LEFT(IF(AH15=\"\",\"\",INDEX(CADD_DATA!$1:$1048576,AH15,2)),SEARCH(\"+\",IF(AH15=\"\",\"\",INDEX(CADD_DATA!$1:$1048576,AH15,2)))-1)&RIGHT(IF(AH15=\"\",\"\",INDEX(CADD_DATA!$1:$1048576,AH15,2)),5)))","v":""},{"$f":"IF(AH15=\"\",\"\",INDEX(CADD_DATA!$1:$1048576,AH15,3))","v":""},null,"PR",null,null,null,null,null,null,null,0,0,0,0," "," ",null,"","",null,"Ramp",8.3000000000000007,0,"","","",{"$f":"IF(AH15=\"\",\"\",INDEX(CADD_DATA!$1:$1048576,AH15,2))","v":""},{"$f":"IF(AH15=\"\",\"\",INDEX(CADD_DATA!$1:$1048576,AH15,3))","v":""},{"$f":"IF(AH15=\"\",\"\",INDEX(CADD_DATA!$1:$1048576,AH15,4))","v":""},{"$f":"IF(AH15=\"\",\"\",INDEX(CADD_DATA!$1:$1048576,AH15,5))","v":""},{"$f":"IF(B15=\"\",\"\",MATCH($AU$4&\"_\"&B15,CADD_DATA!A:A,0))","v":""},0,"","","","",0,0,625.04999999999995,0,true,0,null,null,null,null,null,null,null,"","","",""]
[null,null,{"$f":"IF(ISBLANK(B16),\"\",CONCATENATE(LEFT(IF(AH16=\"\",\"\",INDEX(CADD_DATA!$1:$1048576,AH16,2)),SEARCH(\"+\",IF(AH16=\"\",\"\",INDEX(CADD_DATA!$1:$1048576,AH16,2)))-1)&RIGHT(IF(AH16=\"\",\"\",INDEX(CADD_DATA!$1:$1048576,AH16,2)),5)))","v":""},{"$f":"IF(AH16=\"\",\"\",INDEX(CADD_DATA!$1:$1048576,AH16,3))","v":""},null,"PR",null,null,null,null,null,null,null,0,0,0,0," "," ",null,"","",null,"Sidewalk",5,0,"","","",{"$f":"IF(AH16=\"\",\"\",INDEX(CADD_DATA!$1:$1048576,AH16,2))","v":""},{"$f":"IF(AH16=\"\",\"\",INDEX(CADD_DATA!$1:$1048576,AH16,3))","v":""},{"$f":"IF(AH16=\"\",\"\",INDEX(CADD_DATA!$1:$1048576,AH16,4))","v":""},{"$f":"IF(AH16=\"\",\"\",INDEX(CADD_DATA!$1:$1048576,AH16,5))","v":""},{"$f":"IF(B16=\"\",\"\",MATCH($AU$4&\"_\"&B16,CADD_DATA!A:A,0))","v":""},0,"","","","",0,0,625.15,0,true,0,null,null,null,null,null,null,null,"","","",""]
[null,null,{"$f":"IF(ISBLANK(B17),\"\",CONCATENATE(LEFT(IF(AH17=\"\",\"\",INDEX(CADD_DATA!$1:$1048576,AH17,2)),SEARCH(\"+\",IF(AH17=\"\",\"\",INDEX(CADD_DATA!$1:$1048576,AH17,2)))-1)&RIGHT(IF(AH17=\"\",\"\",INDEX(CADD_DATA!$1:$1048576,AH17,2)),5)))","v":""},{"$f":"IF(AH17=\"\",\"\",INDEX(CADD_DATA!$1:$1048576,AH17,3))","v":""},null,"PR",null,null,null,null,null,null,null,0,0,0,0," "," ",null,"","",null,null,null,null,"","","",{"$f":"IF(AH17=\"\",\"\",INDEX(CADD_DATA!$1:$1048576,AH17,2))","v":""},{"$f":"IF(AH17=\"\",\"\",INDEX(CADD_DATA!$1:$1048576,AH17,3))","v":""},{"$f":"IF(AH17=\"\",\"\",INDEX(CADD_DATA!$1:$1048576,AH17,4))","v":""},{"$f":"IF(AH17=\"\",\"\",INDEX(CADD_DATA!$1:$1048576,AH17,5))","v":""},{"$f":"IF(B17=\"\",\"\",MATCH($AU$4&\"_\"&B17,CADD_DATA!A:A,0))","v":""},0,"","","","",0,0,624.89,0,true,0,null,null,null,null,null,null,null,"","","",""]
[null,null,{"$f":"IF(ISBLANK(B18),\"\",CONCATENATE(LEFT(IF(AH18=\"\",\"\",INDEX(CADD_DATA!$1:$1048576,AH18,2)),SEARCH(\"+\",IF(AH18=\"\",\"\",INDEX(CADD_DATA!$1:$1048576,AH18,2)))-1)&RIGHT(IF(AH18=\"\",\"\",INDEX(CADD_DATA!$1:$1048576,AH18,2)),5)))","v":""},{"$f":"IF(AH18=\"\",\"\",INDEX(CADD_DATA!$1:$1048576,AH18,3))","v":""},null,"PR",null,null,null,null,null,null,null,0,0,0,0," "," ",null,"","",null,"Legand",null,null,"","","",{"$f":"IF(AH18=\"\",\"\",INDEX(CADD_DATA!$1:$1048576,AH18,2))","v":""},{"$f":"IF(AH18=\"\",\"\",INDEX(CADD_DATA!$1:$1048576,AH18,3))","v":""},{"$f":"IF(AH18=\"\",\"\",INDEX(CADD_DATA!$1:$1048576,AH18,4))","v":""},{"$f":"IF(AH18=\"\",\"\",INDEX(CADD_DATA!$1:$1048576,AH18,5))","v":""},{"$f":"IF(B18=\"\",\"\",MATCH($AU$4&\"_\"&B18,CADD_DATA!A:A,0))","v":""},0,"","","","",0,0,624.95000000000005,0,true,0,null,null,null,null,null,null,null,"","","",""]
[null,null,{"$f":"IF(ISBLANK(B19),\"\",CONCATENATE(LEFT(IF(AH19=\"\",\"\",INDEX(CADD_DATA!$1:$1048576,AH19,2)),SEARCH(\"+\",IF(AH19=\"\",\"\",INDEX(CADD_DATA!$1:$1048576,AH19,2)))-1)&RIGHT(IF(AH19=\"\",\"\",INDEX(CADD_DATA!$1:$1048576,AH19,2)),5)))","v":""},{"$f":"IF(AH19=\"\",\"\",INDEX(CADD_DATA!$1:$1048576,AH19,3))","v":""},null,"PR",null,null,null,null,null,null,null,0,0,0,0," "," ",null,"","",null,null,"ROUNDING ERROR",null,"","","",{"$f":"IF(AH19=\"\",\"\",INDEX(CADD_DATA!$1:$1048576,AH19,2))","v":""},{"$f":"IF(AH19=\"\",\"\",INDEX(CADD_DATA!$1:$1048576,AH19,3))","v":""},{"$f":"IF(AH19=\"\",\"\",INDEX(CADD_DATA!$1:$1048576,AH19,4))","v":""},{"$f":"IF(AH19=\"\",\"\",INDEX(CADD_DATA!$1:$1048576,AH19,5))","v":""},{"$f":"IF(B19=\"\",\"\",MATCH($AU$4&\"_\"&B19,CADD_DATA!A:A,0))","v":""},0,"","","","",0,0,625,0,true,0,null,null,null,null,null,null,null,"","","",""]
[null,null,{"$f":"IF(ISBLANK(B20),\"\",CONCATENATE(LEFT(IF(AH20=\"\",\"\",INDEX(CADD_DATA!$1:$1048576,AH20,2)),SEARCH(\"+\",IF(AH20=\"\",\"\",INDEX(CADD_DATA!$1:$1048576,AH20,2)))-1)&RIGHT(IF(AH20=\"\",\"\",INDEX(CADD_DATA!$1:$1048576,AH20,2)),5)))","v":""},{"$f":"IF(AH20=\"\",\"\",INDEX(CADD_DATA!$1:$1048576,AH20,3))","v":""},null,"PR",null,null,null,null,null,null,null,0,0,0,0," "," ",null,"","",null,null,"VIOLATES SLOPE RANGES",null,"","","",{"$f":"IF(AH20=\"\",\"\",INDEX(CADD_DATA!$1:$1048576,AH20,2))","v":""},{"$f":"IF(AH20=\"\",\"\",INDEX(CADD_DATA!$1:$1048576,AH20,3))","v":""},{"$f":"IF(AH20=\"\",\"\",INDEX(CADD_DATA!$1:$1048576,AH20,4))","v":""},{"$f":"IF(AH20=\"\",\"\",INDEX(CADD_DATA!$1:$1048576,AH20,5))","v":""},{"$f":"IF(B20=\"\",\"\",MATCH($AU$4&\"_\"&B20,CADD_DATA!A:A,0))","v":""},0,"","","","",0,0,624.91,0,true,0,null,null,null,null,null,null,null,"","","",""]
[null,null,{"$f":"IF(ISBLANK(B21),\"\",CONCATENATE(LEFT(IF(AH21=\"\",\"\",INDEX(CADD_DATA!$1:$1048576,AH21,2)),SEARCH(\"+\",IF(AH21=\"\",\"\",INDEX(CADD_DATA!$1:$1048576,AH21,2)))-1)&RIGHT(IF(AH21=\"\",\"\",INDEX(CADD_DATA!$1:$1048576,AH21,2)),5)))","v":""},{"$f":"IF(AH21=\"\",\"\",INDEX(CADD_DATA!$1:$1048576,AH21,3))","v":""},null,"PR",null,null,null,null,null,null,null,0,0,0,0," "," ",null,"","",null,null,null,null,"","","",{"$f":"IF(AH21=\"\",\"\",INDEX(CADD_DATA!$1:$1048576,AH21,2))","v":""},{"$f":"IF(AH21=\"\",\"\",INDEX(CADD_DATA!$1:$1048576,AH21,3))","v":""},{"$f":"IF(AH21=\"\",\"\",INDEX(CADD_DATA!$1:$1048576,AH21,4))","v":""},{"$f":"IF(AH21=\"\",\"\",INDEX(CADD_DATA!$1:$1048576,AH21,5))","v":""},{"$f":"IF(B21=\"\",\"\",MATCH($AU$4&\"_\"&B21,CADD_DATA!A:A,0))","v":""},0,"","","","",0,0,624.95000000000005,0,true,0,null,null,null,null,null,null,null,"","","",""]
[null,null,{"$f":"IF(ISBLANK(B22),\"\",CONCATENATE(LEFT(IF(AH22=\"\",\"\",INDEX(CADD_DATA!$1:$1048576,AH22,2)),SEARCH(\"+\",IF(AH22=\"\",\"\",INDEX(CADD_DATA!$1:$1048576,AH22,2)))-1)&RIGHT(IF(AH22=\"\",\"\",INDEX(CADD_DATA!$1:$1048576,AH22,2)),5)))","v":""},{"$f":"IF(AH22=\"\",\"\",INDEX(CADD_DATA!$1:$1048576,AH22,3))","v":""},null,"PR",null,null,null,null,null,null,null,0,0,0,0," "," ",null,"","",null,null,null,null,"","","",{"$f":"IF(AH22=\"\",\"\",INDEX(CADD_DATA!$1:$1048576,AH22,2))","v":""},{"$f":"IF(AH22=\"\",\"\",INDEX(CADD_DATA!$1:$1048576,AH22,3))","v":""},{"$f":"IF(AH22=\"\",\"\",INDEX(CADD_DATA!$1:$1048576,AH22,4))","v":""},{"$f":"IF(AH22=\"\",\"\",INDEX(CADD_DATA!$1:$1048576,AH22,5))","v":""},{"$f":"IF(B22=\"\",\"\",MATCH($AU$4&\"_\"&B22,CADD_DATA!A:A,0))","v":""},0,"","","","",0,0,625.04999999999995,0,true,0,null,null,null,null,null,null,null,"","","",""]
[null,null,{"$f":"IF(ISBLANK(B23),\"\",CONCATENATE(LEFT(IF(AH23=\"\",\"\",INDEX(CADD_DATA!$1:$1048576,AH23,2)),SEARCH(\"+\",IF(AH23=\"\",\"\",INDEX(CADD_DATA!$1:$1048576,AH23,2)))-1)&RIGHT(IF(AH23=\"\",\"\",INDEX(CADD_DATA!$1:$1048576,AH23,2)),5)))","v":""},{"$f":"IF(AH23=\"\",\"\",INDEX(CADD_DATA!$1:$1048576,AH23,3))","v":""},null,"PR",null,null,null,null,null,null,null,0,0,0,0," "," ",null,"","",null,null,null,null,"","","",{"$f":"IF(AH23=\"\",\"\",INDEX(CADD_DATA!$1:$1048576,AH23,2))","v":""},{"$f":"IF(AH23=\"\",\"\",INDEX(CADD_DATA!$1:$1048576,AH23,3))","v":""},{"$f":"IF(AH23=\"\",\"\",INDEX(CADD_DATA!$1:$1048576,AH23,4))","v":""},{"$f":"IF(AH23=\"\",\"\",INDEX(CADD_DATA!$1:$1048576,AH23,5))","v":""},{"$f":"IF(B23=\"\",\"\",MATCH($AU$4&\"_\"&B23,CADD_DATA!A:A,0))","v":""},0,"","","","",0,0,625.02,0,true,0,null,null,null,null,null,null,null,"","","",""]
[null,null,{"$f":"IF(ISBLANK(B24),\"\",CONCATENATE(LEFT(IF(AH24=\"\",\"\",INDEX(CADD_DATA!$1:$1048576,AH24,2)),SEARCH(\"+\",IF(AH24=\"\",\"\",INDEX(CADD_DATA!$1:$1048576,AH24,2)))-1)&RIGHT(IF(AH24=\"\",\"\",INDEX(CADD_DATA!$1:$1048576,AH24,2)),5)))","v":""},{"$f":"IF(AH24=\"\",\"\",INDEX(CADD_DATA!$1:$1048576,AH24,3))","v":""},null,"PR",null,null,null,null,null,null,null,0,0,0,0," "," ",null,"","",null,null,null,null,"","","",{"$f":"IF(AH24=\"\",\"\",INDEX(CADD_DATA!$1:$1048576,AH24,2))","v":""},{"$f":"IF(AH24=\"\",\"\",INDEX(CADD_DATA!$1:$1048576,AH24,3))","v":""},{"$f":"IF(AH24=\"\",\"\",INDEX(CADD_DATA!$1:$1048576,AH24,4))","v":""},{"$f":"IF(AH24=\"\",\"\",INDEX(CADD_DATA!$1:$1048576,AH24,5))","v":""},{"$f":"IF(B24=\"\",\"\",MATCH($AU$4&\"_\"&B24,CADD_DATA!A:A,0))","v":""},0,"","","","",0,0,625.08000000000004,0,true,0,null,null,null,null,null,null,null,"","","",""]
[null,null,{"$f":"IF(ISBLANK(B25),\"\",CONCATENATE(LEFT(IF(AH25=\"\",\"\",INDEX(CADD_DATA!$1:$1048576,AH25,2)),SEARCH(\"+\",IF(AH25=\"\",\"\",INDEX(CADD_DATA!$1:$1048576,AH25,2)))-1)&RIGHT(IF(AH25=\"\",\"\",INDEX(CADD_DATA!$1:$1048576,AH25,2)),5)))","v":""},{"$f":"IF(AH25=\"\",\"\",INDEX(CADD_DATA!$1:$1048576,AH25,3))","v":""},null,"PR",null,null,null,null,null,null,null,0,0,0,0," "," ",null,"","",null,null,null,null,"","","",{"$f":"IF(AH25=\"\",\"\",INDEX(CADD_DATA!$1:$1048576,AH25,2))","v":""},{"$f":"IF(AH25=\"\",\"\",INDEX(CADD_DATA!$1:$1048576,AH25,3))","v":""},{"$f":"IF(AH25=\"\",\"\",INDEX(CADD_DATA!$1:$1048576,AH25,4))","v":""},{"$f":"IF(AH25=\"\",\"\",INDEX(CADD_DATA!$1:$1048576,AH25,5))","v":""},{"$f":"IF(B25=\"\",\"\",MATCH($AU$4&\"_\"&B25,CADD_DATA!A:A,0))","v":""},0,"","","","",0,0,625.1,0,true,0,null,null,null,null,null,null,null,"","","",""]
[null,null,{"$f":"IF(ISBLANK(B26),\"\",CONCATENATE(LEFT(IF(AH26=\"\",\"\",INDEX(CADD_DATA!$1:$1048576,AH26,2)),SEARCH(\"+\",IF(AH26=\"\",\"\",INDEX(CADD_DATA!$1:$1048576,AH26,2)))-1)&RIGHT(IF(AH26=\"\",\"\",INDEX(CADD_DATA!$1:$1048576,AH26,2)),5)))","v":""},{"$f":"IF(AH26=\"\",\"\",INDEX(CADD_DATA!$1:$1048576,AH26,3))","v":""},null,"PR",null,null,null,null,null,null,null,0,0,0,0," "," ",null,"","",null,null,null,null,"","","",{"$f":"IF(AH26=\"\",\"\",INDEX(CADD_DATA!$1:$1048576,AH26,2))","v":""},{"$f":"IF(AH26=\"\",\"\",INDEX(CADD_DATA!$1:$1048576,AH26,3))","v":""},{"$f":"IF(AH26=\"\",\"\",INDEX(CADD_DATA!$1:$1048576,AH26,4))","v":""},{"$f":"IF(AH26=\"\",\"\",INDEX(CADD_DATA!$1:$1048576,AH26,5))","v":""},{"$f":"IF(B26=\"\",\"\",MATCH($AU$4&\"_\"&B26,CADD_DATA!A:A,0))","v":""},0,"","","","",0,0,625,0,true,0,null,null,null,null,null,null,null,"","","",""]
[null,null,{"$f":"IF(ISBLANK(B27),\"\",CONCATENATE(LEFT(IF(AH27=\"\",\"\",INDEX(CADD_DATA!$1:$1048576,AH27,2)),SEARCH(\"+\",IF(AH27=\"\",\"\",INDEX(CADD_DATA!$1:$1048576,AH27,2)))-1)&RIGHT(IF(AH27=\"\",\"\",INDEX(CADD_DATA!$1:$1048576,AH27,2)),5)))","v":""},{"$f":"IF(AH27=\"\",\"\",INDEX(CADD_DATA!$1:$1048576,AH27,3))","v":""},null,"PR",null,null,null,null,null,null,null,0,0,0,0," "," ",null,"","",null,null,null,null,"","","",{"$f":"IF(AH27=\"\",\"\",INDEX(CADD_DATA!$1:$1048576,AH27,2))","v":""},{"$f":"IF(AH27=\"\",\"\",INDEX(CADD_DATA!$1:$1048576,AH27,3))","v":""},{"$f":"IF(AH27=\"\",\"\",INDEX(CADD_DATA!$1:$1048576,AH27,4))","v":""},{"$f":"IF(AH27=\"\",\"\",INDEX(CADD_DATA!$1:$1048576,AH27,5))","v":""},{"$f":"IF(B27=\"\",\"\",MATCH($AU$4&\"_\"&B27,CADD_DATA!A:A,0))","v":""},0,"","","","",0,0,625.12,0,true,0,null,null,null,null,null,null,null,"","","",""]
[null,null,{"$f":"IF(ISBLANK(B28),\"\",CONCATENATE(LEFT(IF(AH28=\"\",\"\",INDEX(CADD_DATA!$1:$1048576,AH28,2)),SEARCH(\"+\",IF(AH28=\"\",\"\",INDEX(CADD_DATA!$1:$1048576,AH28,2)))-1)&RIGHT(IF(AH28=\"\",\"\",INDEX(CADD_DATA!$1:$1048576,AH28,2)),5)))","v":""},{"$f":"IF(AH28=\"\",\"\",INDEX(CADD_DATA!$1:$1048576,AH28,3))","v":""},null,"PR",null,null,null,null,null,null,null,0,0,0,0," "," ",null,"","",null,null,null,null,"","","",{"$f":"IF(AH28=\"\",\"\",INDEX(CADD_DATA!$1:$1048576,AH28,2))","v":""},{"$f":"IF(AH28=\"\",\"\",INDEX(CADD_DATA!$1:$1048576,AH28,3))","v":""},{"$f":"IF(AH28=\"\",\"\",INDEX(CADD_DATA!$1:$1048576,AH28,4))","v":""},{"$f":"IF(AH28=\"\",\"\",INDEX(CADD_DATA!$1:$1048576,AH28,5))","v":""},{"$f":"IF(B28=\"\",\"\",MATCH($AU$4&\"_\"&B28,CADD_DATA!A:A,0))","v":""},0,"","","","",0,0,625.01,0,true,0,null,null,null,null,null,null,null,"","","",""]
[null,null,{"$f":"IF(ISBLANK(B29),\"\",CONCATENATE(LEFT(IF(AH29=\"\",\"\",INDEX(CADD_DATA!$1:$1048576,AH29,2)),SEARCH(\"+\",IF(AH29=\"\",\"\",INDEX(CADD_DATA!$1:$1048576,AH29,2)))-1)&RIGHT(IF(AH29=\"\",\"\",INDEX(CADD_DATA!$1:$1048576,AH29,2)),5)))","v":""},{"$f":"IF(AH29=\"\",\"\",INDEX(CADD_DATA!$1:$1048576,AH29,3))","v":""},null,"PR",null,null,null,null,null,null,null,0,0,0,0," "," ",null,"","",null,null,null,null,"","","",{"$f":"IF(AH29=\"\",\"\",INDEX(CADD_DATA!$1:$1048576,AH29,2))","v":""},{"$f":"IF(AH29=\"\",\"\",INDEX(CADD_DATA!$1:$1048576,AH29,3))","v":""},{"$f":"IF(AH29=\"\",\"\",INDEX(CADD_DATA!$1:$1048576,AH29,4))","v":""},{"$f":"IF(AH29=\"\",\"\",INDEX(CADD_DATA!$1:$1048576,AH29,5))","v":""},{"$f":"IF(B29=\"\",\"\",MATCH($AU$4&\"_\"&B29,CADD_DATA!A:A,0))","v":""},0,"","","","",0,0,625.12,0,true,0,null,null,null,null,null,null,null,"","","",""]
[null,null,{"$f":"IF(ISBLANK(B30),\"\",CONCATENATE(LEFT(IF(AH30=\"\",\"\",INDEX(CADD_DATA!$1:$1048576,AH30,2)),SEARCH(\"+\",IF(AH30=\"\",\"\",INDEX(CADD_DATA!$1:$1048576,AH30,2)))-1)&RIGHT(IF(AH30=\"\",\"\",INDEX(CADD_DATA!$1:$1048576,AH30,2)),5)))","v":""},{"$f":"IF(AH30=\"\",\"\",INDEX(CADD_DATA!$1:$1048576,AH30,3))","v":""},null,"PR",null,null,null,null,null,null,null,0,0,0,0," "," ",null,"","",null,null,null,null,"","","",{"$f":"IF(AH30=\"\",\"\",INDEX(CADD_DATA!$1:$1048576,AH30,2))","v":""},{"$f":"IF(AH30=\"\",\"\",INDEX(CADD_DATA!$1:$1048576,AH30,3))","v":""},{"$f":"IF(AH30=\"\",\"\",INDEX(CADD_DATA!$1:$1048576,AH30,4))","v":""},{"$f":"IF(AH30=\"\",\"\",INDEX(CADD_DATA!$1:$1048576,AH30,5))","v":""},{"$f":"IF(B30=\"\",\"\",MATCH($AU$4&\"_\"&B30,CADD_DATA!A:A,0))","v":""},0,"","","","",0,0,624.94000000000005,0,true,0,null,null,null,null,null,null,null,"","","",""]
[null,null,{"$f":"IF(ISBLANK(B31),\"\",CONCATENATE(LEFT(IF(AH31=\"\",\"\",INDEX(CADD_DATA!$1:$1048576,AH31,2)),SEARCH(\"+\",IF(AH31=\"\",\"\",INDEX(CADD_DATA!$1:$1048576,AH31,2)))-1)&RIGHT(IF(AH31=\"\",\"\",INDEX(CADD_DATA!$1:$1048576,AH31,2)),5)))","v":""},{"$f":"IF(AH31=\"\",\"\",INDEX(CADD_DATA!$1:$1048576,AH31,3))","v":""},null,"PR",null,null,null,null,null,null,null,0,0,0,0," "," ",null,"","",null,null,null,null,"","","",{"$f":"IF(AH31=\"\",\"\",INDEX(CADD_DATA!$1:$1048576,AH31,2))","v":""},{"$f":"IF(AH31=\"\",\"\",INDEX(CADD_DATA!$1:$1048576,AH31,3))","v":""},{"$f":"IF(AH31=\"\",\"\",INDEX(CADD_DATA!$1:$1048576,AH31,4))","v":""},{"$f":"IF(AH31=\"\",\"\",INDEX(CADD_DATA!$1:$1048576,AH31,5))","v":""},{"$f":"IF(B31=\"\",\"\",MATCH($AU$4&\"_\"&B31,CADD_DATA!A:A,0))","v":""},0,"","","","",0,0,625.09,0,true,0,null,null,null,null,null,null,null,"","","",""]
[null,null,{"$f":"IF(ISBLANK(B32),\"\",CONCATENATE(LEFT(IF(AH32=\"\",\"\",INDEX(CADD_DATA!$1:$1048576,AH32,2)),SEARCH(\"+\",IF(AH32=\"\",\"\",INDEX(CADD_DATA!$1:$1048576,AH32,2)))-1)&RIGHT(IF(AH32=\"\",\"\",INDEX(CADD_DATA!$1:$1048576,AH32,2)),5)))","v":""},{"$f":"IF(AH32=\"\",\"\",INDEX(CADD_DATA!$1:$1048576,AH32,3))","v":""},null,"PR",null,null,null,null,null,null,null,0,0,0,0," "," ",null,"","",null,null,null,null,"","","",{"$f":"IF(AH32=\"\",\"\",INDEX(CADD_DATA!$1:$1048576,AH32,2))","v":""},{"$f":"IF(AH32=\"\",\"\",INDEX(CADD_DATA!$1:$1048576,AH32,3))","v":""},{"$f":"IF(AH32=\"\",\"\",INDEX(CADD_DATA!$1:$1048576,AH32,4))","v":""},{"$f":"IF(AH32=\"\",\"\",INDEX(CADD_DATA!$1:$1048576,AH32,5))","v":""},{"$f":"IF(B32=\"\",\"\",MATCH($AU$4&\"_\"&B32,CADD_DATA!A:A,0))","v":""},0,"","","","",0,0,625.09,0,true,0,null,null,null,null,null,null,null,"","","",""]
[null,null,{"$f":"IF(ISBLANK(B33),\"\",CONCATENATE(LEFT(IF(AH33=\"\",\"\",INDEX(CADD_DATA!$1:$1048576,AH33,2)),SEARCH(\"+\",IF(AH33=\"\",\"\",INDEX(CADD_DATA!$1:$1048576,AH33,2)))-1)&RIGHT(IF(AH33=\"\",\"\",INDEX(CADD_DATA!$1:$1048576,AH33,2)),5)))","v":""},{"$f":"IF(AH33=\"\",\"\",INDEX(CADD_DATA!$1:$1048576,AH33,3))","v":""},null,"PR",null,null,null,null,null,null,null,0,0,0,0," "," ",null,"","",null,null,null,null,"","","",{"$f":"IF(AH33=\"\",\"\",INDEX(CADD_DATA!$1:$1048576,AH33,2))","v":""},{"$f":"IF(AH33=\"\",\"\",INDEX(CADD_DATA!$1:$1048576,AH33,3))","v":""},{"$f":"IF(AH33=\"\",\"\",INDEX(CADD_DATA!$1:$1048576,AH33,4))","v":""},{"$f":"IF(AH33=\"\",\"\",INDEX(CADD_DATA!$1:$1048576,AH33,5))","v":""},{"$f":"IF(B33=\"\",\"\",MATCH($AU$4&\"_\"&B33,CADD_DATA!A:A,0))","v":""},0,"","","","",0,0,625,0,true,0,null,null,null,null,null,null,null,"","","",""]
[null,null,{"$f":"IF(ISBLANK(B34),\"\",CONCATENATE(LEFT(IF(AH34=\"\",\"\",INDEX(CADD_DATA!$1:$1048576,AH34,2)),SEARCH(\"+\",IF(AH34=\"\",\"\",INDEX(CADD_DATA!$1:$1048576,AH34,2)))-1)&RIGHT(IF(AH34=\"\",\"\",INDEX(CADD_DATA!$1:$1048576,AH34,2)),5)))","v":""},{"$f":"IF(AH34=\"\",\"\",INDEX(CADD_DATA!$1:$1048576,AH34,3))","v":""},null,"PR",null,null,null,null,null,null,null,0,0,0,0," "," ",null,"","",null,null,null,null,"","","",{"$f":"IF(AH34=\"\",\"\",INDEX(CADD_DATA!$1:$1048576,AH34,2))","v":""},{"$f":"IF(AH34=\"\",\"\",INDEX(CADD_DATA!$1:$1048576,AH34,3))","v":""},{"$f":"IF(AH34=\"\",\"\",INDEX(CADD_DATA!$1:$1048576,AH34,4))","v":""},{"$f":"IF(AH34=\"\",\"\",INDEX(CADD_DATA!$1:$1048576,AH34,5))","v":""},{"$f":"IF(B34=\"\",\"\",MATCH($AU$4&\"_\"&B34,CADD_DATA!A:A,0))","v":""},0,"","","","",0,0,625.12,0,true,0,null,null,null,null,null,null,null,"","","",""]
[null,null,{"$f":"IF(ISBLANK(B35),\"\",CONCATENATE(LEFT(IF(AH35=\"\",\"\",INDEX(CADD_DATA!$1:$1048576,AH35,2)),SEARCH(\"+\",IF(AH35=\"\",\"\",INDEX(CADD_DATA!$1:$1048576,AH35,2)))-1)&RIGHT(IF(AH35=\"\",\"\",INDEX(CADD_DATA!$1:$1048576,AH35,2)),5)))","v":""},{"$f":"IF(AH35=\"\",\"\",INDEX(CADD_DATA!$1:$1048576,AH35,3))","v":""},null,"PR",null,null,null,null,null,null,null,0,0,0,0," "," ",null,"","",null,null,null,null,"","","",{"$f":"IF(AH35=\"\",\"\",INDEX(CADD_DATA!$1:$1048576,AH35,2))","v":""},{"$f":"IF(AH35=\"\",\"\",INDEX(CADD_DATA!$1:$1048576,AH35,3))","v":""},{"$f":"IF(AH35=\"\",\"\",INDEX(CADD_DATA!$1:$1048576,AH35,4))","v":""},{"$f":"IF(AH35=\"\",\"\",INDEX(CADD_DATA!$1:$1048576,AH35,5))","v":""},{"$f":"IF(B35=\"\",\"\",MATCH($AU$4&\"_\"&B35,CADD_DATA!A:A,0))","v":""},0,"","","","",0,0,625.09,0,true,0,null,null,null,null,null,null,null,"","","",""]
[null,null,{"$f":"IF(ISBLANK(B36),\"\",CONCATENATE(LEFT(IF(AH36=\"\",\"\",INDEX(CADD_DATA!$1:$1048576,AH36,2)),SEARCH(\"+\",IF(AH36=\"\",\"\",INDEX(CADD_DATA!$1:$1048576,AH36,2)))-1)&RIGHT(IF(AH36=\"\",\"\",INDEX(CADD_DATA!$1:$1048576,AH36,2)),5)))","v":""},{"$f":"IF(AH36=\"\",\"\",INDEX(CADD_DATA!$1:$1048576,AH36,3))","v":""},null,"PR",null,null,null,null,null,null,null,0,0,0,0," "," ",null,"","",null,null,null,null,"","","",{"$f":"IF(AH36=\"\",\"\",INDEX(CADD_DATA!$1:$1048576,AH36,2))","v":""},{"$f":"IF(AH36=\"\",\"\",INDEX(CADD_DATA!$1:$1048576,AH36,3))","v":""},{"$f":"IF(AH36=\"\",\"\",INDEX(CADD_DATA!$1:$1048576,AH36,4))","v":""},{"$f":"IF(AH36=\"\",\"\",INDEX(CADD_DATA!$1:$1048576,AH36,5))","v":""},{"$f":"IF(B36=\"\",\"\",MATCH($AU$4&\"_\"&B36,CADD_DATA!A:A,0))","v":""},0,"","","","",0,0,624.91999999999996,0,true,0,null,null,null,null,null,null,null,"","","",""]
[null,null,{"$f":"IF(ISBLANK(B37),\"\",CONCATENATE(LEFT(IF(AH37=\"\",\"\",INDEX(CADD_DATA!$1:$1048576,AH37,2)),SEARCH(\"+\",IF(AH37=\"\",\"\",INDEX(CADD_DATA!$1:$1048576,AH37,2)))-1)&RIGHT(IF(AH37=\"\",\"\",INDEX(CADD_DATA!$1:$1048576,AH37,2)),5)))","v":""},{"$f":"IF(AH37=\"\",\"\",INDEX(CADD_DATA!$1:$1048576,AH37,3))","v":""},null,"PR",null,null,null,null,null,null,null,0,0,0,0," "," ",null,"","",null,null,null,null,"","","",{"$f":"IF(AH37=\"\",\"\",INDEX(CADD_DATA!$1:$1048576,AH37,2))","v":""},{"$f":"IF(AH37=\"\",\"\",INDEX(CADD_DATA!$1:$1048576,AH37,3))","v":""},{"$f":"IF(AH37=\"\",\"\",INDEX(CADD_DATA!$1:$1048576,AH37,4))","v":""},{"$f":"IF(AH37=\"\",\"\",INDEX(CADD_DATA!$1:$1048576,AH37,5))","v":""},{"$f":"IF(B37=\"\",\"\",MATCH($AU$4&\"_\"&B37,CADD_DATA!A:A,0))","v":""},0,"","","","",0,0,624.95000000000005,0,true,0,null,null,null,null,null,null,null,"","","",""]
[null,null,{"$f":"IF(ISBLANK(B38),\"\",CONCATENATE(LEFT(IF(AH38=\"\",\"\",INDEX(CADD_DATA!$1:$1048576,AH38,2)),SEARCH(\"+\",IF(AH38=\"\",\"\",INDEX(CADD_DATA!$1:$1048576,AH38,2)))-1)&RIGHT(IF(AH38=\"\",\"\",INDEX(CADD_DATA!$1:$1048576,AH38,2)),5)))","v":""},{"$f":"IF(AH38=\"\",\"\",INDEX(CADD_DATA!$1:$1048576,AH38,3))","v":""},null,"PR",null,null,null,null,null,null,null,0,0,0,0," "," ",null,"","",null,null,null,null,"","","",{"$f":"IF(AH38=\"\",\"\",INDEX(CADD_DATA!$1:$1048576,AH38,2))","v":""},{"$f":"IF(AH38=\"\",\"\",INDEX(CADD_DATA!$1:$1048576,AH38,3))","v":""},{"$f":"IF(AH38=\"\",\"\",INDEX(CADD_DATA!$1:$1048576,AH38,4))","v":""},{"$f":"IF(AH38=\"\",\"\",INDEX(CADD_DATA!$1:$1048576,AH38,5))","v":""},{"$f":"IF(B38=\"\",\"\",MATCH($AU$4&\"_\"&B38,CADD_DATA!A:A,0))","v":""},0,"","","","",0,0,624.97,0,true,0,null,null,null,null,null,null,null,"","","",""]
[null,null,{"$f":"IF(ISBLANK(B39),\"\",CONCATENATE(LEFT(IF(AH39=\"\",\"\",INDEX(CADD_DATA!$1:$1048576,AH39,2)),SEARCH(\"+\",IF(AH39=\"\",\"\",INDEX(CADD_DATA!$1:$1048576,AH39,2)))-1)&RIGHT(IF(AH39=\"\",\"\",INDEX(CADD_DATA!$1:$1048576,AH39,2)),5)))","v":""},{"$f":"IF(AH39=\"\",\"\",INDEX(CADD_DATA!$1:$1048576,AH39,3))","v":""},null,"PR",null,null,null,null,null,null,null,0,0,0,0," "," ",null,"","",null,null,null,null,"","","",{"$f":"IF(AH39=\"\",\"\",INDEX(CADD_DATA!$1:$1048576,AH39,2))","v":""},{"$f":"IF(AH39=\"\",\"\",INDEX(CADD_DATA!$1:$1048576,AH39,3))","v":""},{"$f":"IF(AH39=\"\",\"\",INDEX(CADD_DATA!$1:$1048576,AH39,4))","v":""},{"$f":"IF(AH39=\"\",\"\",INDEX(CADD_DATA!$1:$1048576,AH39,5))","v":""},{"$f":"IF(B39=\"\",\"\",MATCH($AU$4&\"_\"&B39,CADD_DATA!A:A,0))","v":""},0,"","","","",0,0,625.11,0,true,0,null,null,null,null,null,null,null,"","","",""]
[null,null,{"$f":"IF(ISBLANK(B40),\"\",CONCATENATE(LEFT(IF(AH40=\"\",\"\",INDEX(CADD_DATA!$1:$1048576,AH40,2)),SEARCH(\"+\",IF(AH40=\"\",\"\",INDEX(CADD_DATA!$1:$1048576,AH40,2)))-1)&RIGHT(IF(AH40=\"\",\"\",INDEX(CADD_DATA!$1:$1048576,AH40,2)),5)))","v":""},{"$f":"IF(AH40=\"\",\"\",INDEX(CADD_DATA!$1:$1048576,AH40,3))","v":""},null,"PR",null,null,null,null,null,null,null,0,0,0,0," "," ",null,"","",null,null,null,null,"","","",{"$f":"IF(AH40=\"\",\"\",INDEX(CADD_DATA!$1:$1048576,AH40,2))","v":""},{"$f":"IF(AH40=\"\",\"\",INDEX(CADD_DATA!$1:$1048576,AH40,3))","v":""},{"$f":"IF(AH40=\"\",\"\",INDEX(CADD_DATA!$1:$1048576,AH40,4))","v":""},{"$f":"IF(AH40=\"\",\"\",INDEX(CADD_DATA!$1:$1048576,AH40,5))","v":""},{"$f":"IF(B40=\"\",\"\",MATCH($AU$4&\"_\"&B40,CADD_DATA!A:A,0))","v":""},0,"","","","",0,0,625.09,0,true,0,null,null,null,null,null,null,null,"","","",""]
[null,null,{"$f":"IF(ISBLANK(B41),\"\",CONCATENATE(LEFT(IF(AH41=\"\",\"\",INDEX(CADD_DATA!$1:$1048576,AH41,2)),SEARCH(\"+\",IF(AH41=\"\",\"\",INDEX(CADD_DATA!$1:$1048576,AH41,2)))-1)&RIGHT(IF(AH41=\"\",\"\",INDEX(CADD_DATA!$1:$1048576,AH41,2)),5)))","v":""},{"$f":"IF(AH41=\"\",\"\",INDEX(CADD_DATA!$1:$1048576,AH41,3))","v":""},null,"PR",null,null,null,null,null,null,null,0,0,0,0," "," ",null,"","",null,null,null,null,"","","",{"$f":"IF(AH41=\"\",\"\",INDEX(CADD_DATA!$1:$1048576,AH41,2))","v":""},{"$f":"IF(AH41=\"\",\"\",INDEX(CADD_DATA!$1:$1048576,AH41,3))","v":""},{"$f":"IF(AH41=\"\",\"\",INDEX(CADD_DATA!$1:$1048576,AH41,4))","v":""},{"$f":"IF(AH41=\"\",\"\",INDEX(CADD_DATA!$1:$1048576,AH41,5))","v":""},{"$f":"IF(B41=\"\",\"\",MATCH($AU$4&\"_\"&B41,CADD_DATA!A:A,0))","v":""},0,"","","","",0,0,624.89,0,true,0,null,null,null,null,null,null,null,"","","",""]
[null,null,{"$f":"IF(ISBLANK(B42),\"\",CONCATENATE(LEFT(IF(AH42=\"\",\"\",INDEX(CADD_DATA!$1:$1048576,AH42,2)),SEARCH(\"+\",IF(AH42=\"\",\"\",INDEX(CADD_DATA!$1:$1048576,AH42,2)))-1)&RIGHT(IF(AH42=\"\",\"\",INDEX(CADD_DATA!$1:$1048576,AH42,2)),5)))","v":""},{"$f":"IF(AH42=\"\",\"\",INDEX(CADD_DATA!$1:$1048576,AH42,3))","v":""},null,"PR",null,null,null,null,null,null,null,0,0,0,0," "," ",null,"","",null,null,null,null,"","","",{"$f":"IF(AH42=\"\",\"\",INDEX(CADD_DATA!$1:$1048576,AH42,2))","v":""},{"$f":"IF(AH42=\"\",\"\",INDEX(CADD_DATA!$1:$1048576,AH42,3))","v":""},{"$f":"IF(AH42=\"\",\"\",INDEX(CADD_DATA!$1:$1048576,AH42,4))","v":""},{"$f":"IF(AH42=\"\",\"\",INDEX(CADD_DATA!$1:$1048576,AH42,5))","v":""},{"$f":"IF(B42=\"\",\"\",MATCH($AU$4&\"_\"&B42,CADD_DATA!A:A,0))","v":""},0,"","","","",0,0,624.9,0,true,0,null,null,null,null,null,null,null,"","","",""]
[null,null,{"$f":"IF(ISBLANK(B43),\"\",CONCATENATE(LEFT(IF(AH43=\"\",\"\",INDEX(CADD_DATA!$1:$1048576,AH43,2)),SEARCH(\"+\",IF(AH43=\"\",\"\",INDEX(CADD_DATA!$1:$1048576,AH43,2)))-1)&RIGHT(IF(AH43=\"\",\"\",INDEX(CADD_DATA!$1:$1048576,AH43,2)),5)))","v":""},{"$f":"IF(AH43=\"\",\"\",INDEX(CADD_DATA!$1:$1048576,AH43,3))","v":""},null,"PR",null,null,null,null,null,null,null,0,0,0,0," "," ",null,"","",null,null,null,null,"","","",{"$f":"IF(AH43=\"\",\"\",INDEX(CADD_DATA!$1:$1048576,AH43,2))","v":""},{"$f":"IF(AH43=\"\",\"\",INDEX(CADD_DATA!$1:$1048576,AH43,3))","v":""},{"$f":"IF(AH43=\"\",\"\",INDEX(CADD_DATA!$1:$1048576,AH43,4))","v":""},{"$f":"IF(AH43=\"\",\"\",INDEX(CADD_DATA!$1:$1048576,AH43,5))","v":""},{"$f":"IF(B43=\"\",\"\",MATCH($AU$4&\"_\"&B43,CADD_DATA!A:A,0))","v":""},0,"","","","",0,0,624.94000000000005,0,true,0,null,null,null,null,null,null,null,"","","",""]
[null,null,{"$f":"IF(ISBLANK(B44),\"\",CONCATENATE(LEFT(IF(AH44=\"\",\"\",INDEX(CADD_DATA!$1:$1048576,AH44,2)),SEARCH(\"+\",IF(AH44=\"\",\"\",INDEX(CADD_DATA!$1:$1048576,AH44,2)))-1)&RIGHT(IF(AH44=\"\",\"\",INDEX(CADD_DATA!$1:$1048576,AH44,2)),5)))","v":""},{"$f":"IF(AH44=\"\",\"\",INDEX(CADD_DATA!$1:$1048576,AH44,3))","v":""},null,"PR",null,null,null,null,null,null,null,0,0,0,0," "," ",null,"","",null,null,null,null,"","","",{"$f":"IF(AH44=\"\",\"\",INDEX(CADD_DATA!$1:$1048576,AH44,2))","v":""},{"$f":"IF(AH44=\"\",\"\",INDEX(CADD_DATA!$1:$1048576,AH44,3))","v":""},{"$f":"IF(AH44=\"\",\"\",INDEX(CADD_DATA!$1:$1048576,AH44,4))","v":""},{"$f":"IF(AH44=\"\",\"\",INDEX(CADD_DATA!$1:$1048576,AH44,5))","v":""},{"$f":"IF(B44=\"\",\"\",MATCH($AU$4&\"_\"&B44,CADD_DATA!A:A,0))","v":""},0,"","","","",0,0,624.89,0,true,0,null,null,null,null,null,null,null,"","","",""]
[null,null,{"$f":"IF(ISBLANK(B45),\"\",CONCATENATE(LEFT(IF(AH45=\"\",\"\",INDEX(CADD_DATA!$1:$1048576,AH45,2)),SEARCH(\"+\",IF(AH45=\"\",\"\",INDEX(CADD_DATA!$1:$1048576,AH45,2)))-1)&RIGHT(IF(AH45=\"\",\"\",INDEX(CADD_DATA!$1:$1048576,AH45,2)),5)))","v":""},{"$f":"IF(AH45=\"\",\"\",INDEX(CADD_DATA!$1:$1048576,AH45,3))","v":""},null,"PR",null,null,null,null,null,null,null,0,0,0,0," "," ",null,"","",null,null,null,null,"","","",{"$f":"IF(AH45=\"\",\"\",INDEX(CADD_DATA!$1:$1048576,AH45,2))","v":""},{"$f":"IF(AH45=\"\",\"\",INDEX(CADD_DATA!$1:$1048576,AH45,3))","v":""},{"$f":"IF(AH45=\"\",\"\",INDEX(CADD_DATA!$1:$1048576,AH45,4))","v":""},{"$f":"IF(AH45=\"\",\"\",INDEX(CADD_DATA!$1:$1048576,AH45,5))","v":""},{"$f":"IF(B45=\"\",\"\",MATCH($AU$4&\"_\"&B45,CADD_DATA!A:A,0))","v":""},0,"","","","",0,0,624.97,0,true,0,null,null,null,null,null,null,null,"","","",""]
[null,null,{"$f":"IF(ISBLANK(B46),\"\",CONCATENATE(LEFT(IF(AH46=\"\",\"\",INDEX(CADD_DATA!$1:$1048576,AH46,2)),SEARCH(\"+\",IF(AH46=\"\",\"\",INDEX(CADD_DATA!$1:$1048576,AH46,2)))-1)&RIGHT(IF(AH46=\"\",\"\",INDEX(CADD_DATA!$1:$1048576,AH46,2)),5)))","v":""},null,null,null,null,null,null,null,null,null,null,null,null,null,null," ",null,null,null,null,null,null,null,null,null,null,null,null,null,null,null,null,null,null,null,null,null,null,null,null,null,null,null,null,null,null,null,null,null,null,null,null,null,""]
[null,null,{"$f":"IF(ISBLANK(B47),\"\",CONCATENATE(LEFT(IF(AH47=\"\",\"\",INDEX(CADD_DATA!$1:$1048576,AH47,2)),SEARCH(\"+\",IF(AH47=\"\",\"\",INDEX(CADD_DATA!$1:$1048576,AH47,2)))-1)&RIGHT(IF(AH47=\"\",\"\",INDEX(CADD_DATA!$1:$1048576,AH47,2)),5)))","v":""},{"$f":"IF(AH47=\"\",\"\",INDEX(CADD_DATA!$1:$1048576,AH47,3))","v":""},{"$f":"IF(AH47=\"\",\"\",INDEX(CADD_DATA!$1:$1048576,AH47,6))","v":""},"EX",null,null,null,null,null,null,null,null,null,0,{"$f":"IF(AND(ISBLANK(H47),ISBLANK(I47)),0,((INDEX($E$3:$E$71,MATCH(I47,$B$3:$B$71,0))-INDEX($E$3:$E$71,MATCH(H47,$B$3:$B$71,0)))/R47))","v":0}," ",{"$f":"IF(AND(ISBLANK(H47),ISBLANK(I47)),\" \",P47*R47)","v":" "},null,null,null,null,null,null,null,"","",{"$f":"IF(E47=0,\"\",E47)","v":""},{"$f":"IF(AH47=\"\",\"\",INDEX(CADD_DATA!$1:$1048576,AH47,2))","v":""},{"$f":"IF(AH47=\"\",\"\",INDEX(CADD_DATA!$1:$1048576,AH47,3))","v":""},{"$f":"IF(AH47=\"\",\"\",INDEX(CADD_DATA!$1:$1048576,AH47,4))","v":""},{"$f":"IF(AH47=\"\",\"\",INDEX(CADD_DATA!$1:$1048576,AH47,5))","v":""},{"$f":"IF(B47=\"\",\"\",MATCH($AU$4&\"_\"&B47,CADD_DATA!A:A,0))","v":""},{"$f":"COUNTIF($B$3:$B$71,B47)","v":0},"","",{"$f":"IF(AND(ISBLANK(H47),ISBLANK(I47)),\"\",COUNTIF($AJ$3:$AJ$71,H47&I47))","v":""},{"$f":"IF(AND(ISBLANK(H47),ISBLANK(I47)),\"\",COUNTIF($AK$3:$AK$71,H47&I47))","v":""},{"$f":"IF(AND(ISBLANK(H47),ISBLANK(I47)),0,SUM(AL47:AM47))","v":0},null,{"$f":"E47","v":""},null,null,null,null,null,null,null,null,null,null,{"$f":"AA47","v":""},{"$f":"IF($BB$2=\"NORTHING\",INDEX($AF$3:$AF$71,MATCH(BA47,$AA$3:$AA$71,0)),IF($BB$2=\"STATION\",INDEX($AD$3:$AD$71,MATCH(BA47,$AA$3:$AA$71,0)),\"\"))","v":""},{"$f":"IF($BC$2=\"EASTING\",INDEX($AG$3:$AG$71,MATCH(BA47,$AA$3:$AA$71,0)),IF($BC$2=\"OFFSET\",INDEX($AE$3:$AE$71,MATCH(BA47,$AA$3:$AA$71,0)),\"\"))","v":""},""]
[null,null,{"$f":"IF(ISBLANK(B48),\"\",CONCATENATE(LEFT(IF(AH48=\"\",\"\",INDEX(CADD_DATA!$1:$1048576,AH48,2)),SEARCH(\"+\",IF(AH48=\"\",\"\",INDEX(CADD_DATA!$1:$1048576,AH48,2)))-1)&RIGHT(IF(AH48=\"\",\"\",INDEX(CADD_DATA!$1:$1048576,AH48,2)),5)))","v":""},{"$f":"IF(AH48=\"\",\"\",INDEX(CADD_DATA!$1:$1048576,AH48,3))","v":""},{"$f":"IF(AH48=\"\",\"\",INDEX(CADD_DATA!$1:$1048576,AH48,6))","v":""},"EX",null,null,null,null,null,null,null,null,null,0,0," "," ",null,null,null,null,null,null,null,"","","",{"$f":"IF(AH48=\"\",\"\",INDEX(CADD_DATA!$1:$1048576,AH48,2))","v":""},{"$f":"IF(AH48=\"\",\"\",INDEX(CADD_DATA!$1:$1048576,AH48,3))","v":""},{"$f":"IF(AH48=\"\",\"\",INDEX(CADD_DATA!$1:$1048576,AH48,4))","v":""},{"$f":"IF(AH48=\"\",\"\",INDEX(CADD_DATA!$1:$1048576,AH48,5))","v":""},{"$f":"IF(B48=\"\",\"\",MATCH($AU$4&\"_\"&B48,CADD_DATA!A:A,0))","v":""},0,"","","","",0,null,"",null,null,null,null,null,null,null,null,null,null,"","","",""]
[null,null,{"$f":"IF(ISBLANK(B49),\"\",CONCATENATE(LEFT(IF(AH49=\"\",\"\",INDEX(CADD_DATA!$1:$1048576,AH49,2)),SEARCH(\"+\",IF(AH49=\"\",\"\",INDEX(CADD_DATA!$1:$1048576,AH49,2)))-1)&RIGHT(IF(AH49=\"\",\"\",INDEX(CADD_DATA!$1:$1048576,AH49,2)),5)))","v":""},{"$f":"IF(AH49=\"\",\"\",INDEX(CADD_DATA!$1:$1048576,AH49,3))","v":""},{"$f":"IF(AH49=\"\",\"\",INDEX(CADD_DATA!$1:$1048576,AH49,6))","v":""},"EX",null,null,null,null,null,null,null,null,null,0,0," "," ",null,2.9174563973187401E-3,null,null,null,null,null,"","","",{"$f":"IF(AH49=\"\",\"\",INDEX(CADD_DATA!$1:$1048576,AH49,2))","v":""},{"$f":"IF(AH49=\"\",\"\",INDEX(CADD_DATA!$1:$1048576,AH49,3))","v":""},{"$f":"IF(AH49=\"\",\"\",INDEX(CADD_DATA!$1:$1048576,AH49,4))","v":""},{"$f":"IF(AH49=\"\",\"\",INDEX(CADD_DATA!$1:$1048576,AH49,5))","v":""},{"$f":"IF(B49=\"\",\"\",MATCH($AU$4&\"_\"&B49,CADD_DATA!A:A,0))","v":""},0,"","","","",0,null,"",null,null,null,null,null,null,null,null,null,null,"","","",""]
[null,null,{"$f":"IF(ISBLANK(B50),\"\",CONCATENATE(LEFT(IF(AH50=\"\",\"\",INDEX(CADD_DATA!$1:$1048576,AH50,2)),SEARCH(\"+\",IF(AH50=\"\",\"\",INDEX(CADD_DATA!$1:$1048576,AH50,2)))-1)&RIGHT(IF(AH50=\"\",\"\",INDEX(CADD_DATA!$1:$1048576,AH50,2)),5)))","v":""},{"$f":"IF(AH50=\"\",\"\",INDEX(CADD_DATA!$1:$1048576,AH50,3))","v":""},{"$f":"IF(AH50=\"\",\"\",INDEX(CADD_DATA!$1:$1048576,AH50,6))","v":""},"EX",null,null,null,null,null,null,null,null,null,0,0," "," ",null,null,null,null,null,null,null,"","","",{"$f":"IF(AH50=\"\",\"\",INDEX(CADD_DATA!$1:$1048576,AH50,2))","v":""},{"$f":"IF(AH50=\"\",\"\",INDEX(CADD_DATA!$1:$1048576,AH50,3))","v":""},{"$f":"IF(AH50=\"\",\"\",INDEX(CADD_DATA!$1:$1048576,AH50,4))","v":""},{"$f":"IF(AH50=\"\",\"\",INDEX(CADD_DATA!$1:$1048576,AH50,5))","v":""},{"$f":"IF(B50=\"\",\"\",MATCH($AU$4&\"_\"&B50,CADD_DATA!A:A,0))","v":""},0,"","","","",0,null,"",null,null,null,null,null,null,null,null,null,null,"","","",""]
[null,null,{"$f":"IF(ISBLANK(B51),\"\",CONCATENATE(LEFT(IF(AH51=\"\",\"\",INDEX(CADD_DATA!$1:$1048576,AH51,2)),SEARCH(\"+\",IF(AH51=\"\",\"\",INDEX(CADD_DATA!$1:$1048576,AH51,2)))-1)&RIGHT(IF(AH51=\"\",\"\",INDEX(CADD_DATA!$1:$1048576,AH51,2)),5)))","v":""},{"$f":"IF(AH51=\"\",\"\",INDEX(CADD_DATA!$1:$1048576,AH51,3))","v":""},{"$f":"IF(AH51=\"\",\"\",INDEX(CADD_DATA!$1:$1048576,AH51,6))","v":""},"EX",null,null,null,null,null,null,null,null,null,0,0," "," ",null,null,null,null,null,null,null,"","","",{"$f":"IF(AH51=\"\",\"\",INDEX(CADD_DATA!$1:$1048576,AH51,2))","v":""},{"$f":"IF(AH51=\"\",\"\",INDEX(CADD_DATA!$1:$1048576,AH51,3))","v":""},{"$f":"IF(AH51=\"\",\"\",INDEX(CADD_DATA!$1:$1048576,AH51,4))","v":""},{"$f":"IF(AH51=\"\",\"\",INDEX(CADD_DATA!$1:$1048576,AH51,5))","v":""},{"$f":"IF(B51=\"\",\"\",MATCH($AU$4&\"_\"&B51,CADD_DATA!A:A,0))","v":""},0,"","","","",0,null,"",null,null,null,null,null,null,null,null,null,null,"","","",""]
[null,null,{"$f":"IF(ISBLANK(B52),\"\",CONCATENATE(LEFT(IF(AH52=\"\",\"\",INDEX(CADD_DATA!$1:$1048576,AH52,2)),SEARCH(\"+\",IF(AH52=\"\",\"\",INDEX(CADD_DATA!$1:$1048576,AH52,2)))-1)&RIGHT(IF(AH52=\"\",\"\",INDEX(CADD_DATA!$1:$1048576,AH52,2)),5)))","v":""},{"$f":"IF(AH52=\"\",\"\",INDEX(CADD_DATA!$1:$1048576,AH52,3))","v":""},{"$f":"IF(AH52=\"\",\"\",INDEX(CADD_DATA!$1:$1048576,AH52,6))","v":""},"EX",null,null,null,null,null,null,null,null,null,0,0," "," ",null,null,null,null,null,null,null,"","","",{"$f":"IF(AH52=\"\",\"\",INDEX(CADD_DATA!$1:$1048576,AH52,2))","v":""},{"$f":"IF(AH52=\"\",\"\",INDEX(CADD_DATA!$1:$1048576,AH52,3))","v":""},{"$f":"IF(AH52=\"\",\"\",INDEX(CADD_DATA!$1:$1048576,AH52,4))","v":""},{"$f":"IF(AH52=\"\",\"\",INDEX(CADD_DATA!$1:$1048576,AH52,5))","v":""},{"$f":"IF(B52=\"\",\"\",MATCH($AU$4&\"_\"&B52,CADD_DATA!A:A,0))","v":""},0,"","","","",0,null,"",null,null,null,null,null,null,null,null,null,null,"","","",""]
[null,null,{"$f":"IF(ISBLANK(B53),\"\",CONCATENATE(LEFT(IF(AH53=\"\",\"\",INDEX(CADD_DATA!$1:$1048576,AH53,2)),SEARCH(\"+\",IF(AH53=\"\",\"\",INDEX(CADD_DATA!$1:$1048576,AH53,2)))-1)&RIGHT(IF(AH53=\"\",\"\",INDEX(CADD_DATA!$1:$1048576,AH53,2)),5)))","v":""},{"$f":"IF(AH53=\"\",\"\",INDEX(CADD_DATA!$1:$1048576,AH53,3))","v":""},{"$f":"IF(AH53=\"\",\"\",INDEX(CADD_DATA!$1:$1048576,AH53,6))","v":""},"EX",null,null,null,null,null,null,null,null,null,0,0," "," ",null,null,null,null,null,null,null,"","","",{"$f":"IF(AH53=\"\",\"\",INDEX(CADD_DATA!$1:$1048576,AH53,2))","v":""},{"$f":"IF(AH53=\"\",\"\",INDEX(CADD_DATA!$1:$1048576,AH53,3))","v":""},{"$f":"IF(AH53=\"\",\"\",INDEX(CADD_DATA!$1:$1048576,AH53,4))","v":""},{"$f":"IF(AH53=\"\",\"\",INDEX(CADD_DATA!$1:$1048576,AH53,5))","v":""},{"$f":"IF(B53=\"\",\"\",MATCH($AU$4&\"_\"&B53,CADD_DATA!A:A,0))","v":""},0,"","","","",0,null,"",null,null,null,null,null,null,null,null,null,null,"","","",""]
[null,null,{"$f":"IF(ISBLANK(B54),\"\",CONCATENATE(LEFT(IF(AH54=\"\",\"\",INDEX(CADD_DATA!$1:$1048576,AH54,2)),SEARCH(\"+\",IF(AH54=\"\",\"\",INDEX(CADD_DATA!$1:$1048576,AH54,2)))-1)&RIGHT(IF(AH54=\"\",\"\",INDEX(CADD_DATA!$1:$1048576,AH54,2)),5)))","v":""},{"$f":"IF(AH54=\"\",\"\",INDEX(CADD_DATA!$1:$1048576,AH54,3))","v":""},{"$f":"IF(AH54=\"\",\"\",INDEX(CADD_DATA!$1:$1048576,AH54,6))","v":""},"EX",null,null,null,null,null,null,null,null,null,0,0," "," ",null,null,null,null,null,null,null,"","","",{"$f":"IF(AH54=\"\",\"\",INDEX(CADD_DATA!$1:$1048576,AH54,2))","v":""},{"$f":"IF(AH54=\"\",\"\",INDEX(CADD_DATA!$1:$1048576,AH54,3))","v":""},{"$f":"IF(AH54=\"\",\"\",INDEX(CADD_DATA!$1:$1048576,AH54,4))","v":""},{"$f":"IF(AH54=\"\",\"\",INDEX(CADD_DATA!$1:$1048576,AH54,5))","v":""},{"$f":"IF(B54=\"\",\"\",MATCH($AU$4&\"_\"&B54,CADD_DATA!A:A,0))","v":""},0,"","","","",0,null,"",null,null,null,null,null,null,null,null,null,null,"","","",""]
[null,null,{"$f":"IF(ISBLANK(B55),\"\",CONCATENATE(LEFT(IF(AH55=\"\",\"\",INDEX(CADD_DATA!$1:$1048576,AH55,2)),SEARCH(\"+\",IF(AH55=\"\",\"\",INDEX(CADD_DATA!$1:$1048576,AH55,2)))-1)&RIGHT(IF(AH55=\"\",\"\",INDEX(CADD_DATA!$1:$1048576,AH55,2)),5)))","v":""},{"$f":"IF(AH55=\"\",\"\",INDEX(CADD_DATA!$1:$1048576,AH55,3))","v":""},{"$f":"IF(AH55=\"\",\"\",INDEX(CADD_DATA!$1:$1048576,AH55,6))","v":""},"EX",null,null,null,null,null,null,null,null,null,0,0," "," ",null,null,null,null,null,null,null,"","","",{"$f":"IF(AH55=\"\",\"\",INDEX(CADD_DATA!$1:$1048576,AH55,2))","v":""},{"$f":"IF(AH55=\"\",\"\",INDEX(CADD_DATA!$1:$1048576,AH55,3))","v":""},{"$f":"IF(AH55=\"\",\"\",INDEX(CADD_DATA!$1:$1048576,AH55,4))","v":""},{"$f":"IF(AH55=\"\",\"\",INDEX(CADD_DATA!$1:$1048576,AH55,5))","v":""},{"$f":"IF(B55=\"\",\"\",MATCH($AU$4&\"_\"&B55,CADD_DATA!A:A,0))","v":""},0,"","","","",0,null,"",null,null,null,null,null,null,null,null,null,null,"","","",""]
[null,null,{"$f":"IF(ISBLANK(B56),\"\",CONCATENATE(LEFT(IF(AH56=\"\",\"\",INDEX(CADD_DATA!$1:$1048576,AH56,2)),SEARCH(\"+\",IF(AH56=\"\",\"\",INDEX(CADD_DATA!$1:$1048576,AH56,2)))-1)&RIGHT(IF(AH56=\"\",\"\",INDEX(CADD_DATA!$1:$1048576,AH56,2)),5)))","v":""},{"$f":"IF(AH56=\"\",\"\",INDEX(CADD_DATA!$1:$1048576,AH56,3))","v":""},{"$f":"IF(AH56=\"\",\"\",INDEX(CADD_DATA!$1:$1048576,AH56,6))","v":""},"EX",null,null,null,null,null,null,null,null,null,0,0," "," ",null,null,null,null,null,null,null,"","","",{"$f":"IF(AH56=\"\",\"\",INDEX(CADD_DATA!$1:$1048576,AH56,2))","v":""},{"$f":"IF(AH56=\"\",\"\",INDEX(CADD_DATA!$1:$1048576,AH56,3))","v":""},{"$f":"IF(AH56=\"\",\"\",INDEX(CADD_DATA!$1:$1048576,AH56,4))","v":""},{"$f":"IF(AH56=\"\",\"\",INDEX(CADD_DATA!$1:$1048576,AH56,5))","v":""},{"$f":"IF(B56=\"\",\"\",MATCH($AU$4&\"_\"&B56,CADD_DATA!A:A,0))","v":""},0,"","","","",0,null,"",null,null,null,null,null,null,null,null,null,null,"","","",""]
[null,null,{"$f":"IF(ISBLANK(B57),\"\",CONCATENATE(LEFT(IF(AH57=\"\",\"\",INDEX(CADD_DATA!$1:$1048576,AH57,2)),SEARCH(\"+\",IF(AH57=\"\",\"\",INDEX(CADD_DATA!$1:$1048576,AH57,2)))-1)&RIGHT(IF(AH57=\"\",\"\",INDEX(CADD_DATA!$1:$1048576,AH57,2)),5)))","v":""},{"$f":"IF(AH57=\"\",\"\",INDEX(CADD_DATA!$1:$1048576,AH57,3))","v":""},{"$f":"IF(AH57=\"\",\"\",INDEX(CADD_DATA!$1:$1048576,AH57,6))","v":""},"EX",null,null,null,null,null,null,null,null,null,0,0," "," ",null,null,null,null,null,null,null,"","","",{"$f":"IF(AH57=\"\",\"\",INDEX(CADD_DATA!$1:$1048576,AH57,2))","v":""},{"$f":"IF(AH57=\"\",\"\",INDEX(CADD_DATA!$1:$1048576,AH57,3))","v":""},{"$f":"IF(AH57=\"\",\"\",INDEX(CADD_DATA!$1:$1048576,AH57,4))","v":""},{"$f":"IF(AH57=\"\",\"\",INDEX(CADD_DATA!$1:$1048576,AH57,5))","v":""},{"$f":"IF(B57=\"\",\"\",MATCH($AU$4&\"_\"&B57,CADD_DATA!A:A,0))","v":""},0,"","","","",0,null,"",null,null,null,null,null,null,null,null,null,null,"","","",""]
[null,null,{"$f":"IF(ISBLANK(B58),\"\",CONCATENATE(LEFT(IF(AH58=\"\",\"\",INDEX(CADD_DATA!$1:$1048576,AH58,2)),SEARCH(\"+\",IF(AH58=\"\",\"\",INDEX(CADD_DATA!$1:$1048576,AH58,2)))-1)&RIGHT(IF(AH58=\"\",\"\",INDEX(CADD_DATA!$1:$1048576,AH58,2)),5)))","v":""},{"$f":"IF(AH58=\"\",\"\",INDEX(CADD_DATA!$1:$1048576,AH58,3))","v":""},{"$f":"IF(AH58=\"\",\"\",INDEX(CADD_DATA!$1:$1048576,AH58,6))","v":""},"EX",null,null,null,null,null,null,null,null,null,0,0," "," ",null,null,null,null,null,null,null,"","","",{"$f":"IF(AH58=\"\",\"\",INDEX(CADD_DATA!$1:$1048576,AH58,2))","v":""},{"$f":"IF(AH58=\"\",\"\",INDEX(CADD_DATA!$1:$1048576,AH58,3))","v":""},{"$f":"IF(AH58=\"\",\"\",INDEX(CADD_DATA!$1:$1048576,AH58,4))","v":""},{"$f":"IF(AH58=\"\",\"\",INDEX(CADD_DATA!$1:$1048576,AH58,5))","v":""},{"$f":"IF(B58=\"\",\"\",MATCH($AU$4&\"_\"&B58,CADD_DATA!A:A,0))","v":""},0,"","","","",0,null,"",null,null,null,null,null,null,null,null,null,null,"","","",""]
[null,null,{"$f":"IF(ISBLANK(B59),\"\",CONCATENATE(LEFT(IF(AH59=\"\",\"\",INDEX(CADD_DATA!$1:$1048576,AH59,2)),SEARCH(\"+\",IF(AH59=\"\",\"\",INDEX(CADD_DATA!$1:$1048576,AH59,2)))-1)&RIGHT(IF(AH59=\"\",\"\",INDEX(CADD_DATA!$1:$1048576,AH59,2)),5)))","v":""},{"$f":"IF(AH59=\"\",\"\",INDEX(CADD_DATA!$1:$1048576,AH59,3))","v":""},{"$f":"IF(AH59=\"\",\"\",INDEX(CADD_DATA!$1:$1048576,AH59,6))","v":""},"EX",null,null,null,null,null,null,null,null,null,0,0," "," ",null,null,null,null,null,null,null,"","","",{"$f":"IF(AH59=\"\",\"\",INDEX(CADD_DATA!$1:$1048576,AH59,2))","v":""},{"$f":"IF(AH59=\"\",\"\",INDEX(CADD_DATA!$1:$1048576,AH59,3))","v":""},{"$f":"IF(AH59=\"\",\"\",INDEX(CADD_DATA!$1:$1048576,AH59,4))","v":""},{"$f":"IF(AH59=\"\",\"\",INDEX(CADD_DATA!$1:$1048576,AH59,5))","v":""},{"$f":"IF(B59=\"\",\"\",MATCH($AU$4&\"_\"&B59,CADD_DATA!A:A,0))","v":""},0,"","","","",0,null,"",null,null,null,null,null,null,null,null,null,null,"","","",""]
[null,null,{"$f":"IF(ISBLANK(B60),\"\",CONCATENATE(LEFT(IF(AH60=\"\",\"\",INDEX(CADD_DATA!$1:$1048576,AH60,2)),SEARCH(\"+\",IF(AH60=\"\",\"\",INDEX(CADD_DATA!$1:$1048576,AH60,2)))-1)&RIGHT(IF(AH60=\"\",\"\",INDEX(CADD_DATA!$1:$1048576,AH60,2)),5)))","v":""},{"$f":"IF(AH60=\"\",\"\",INDEX(CADD_DATA!$1:$1048576,AH60,3))","v":""},{"$f":"IF(AH60=\"\",\"\",INDEX(CADD_DATA!$1:$1048576,AH60,6))","v":""},"EX",null,null,null,null,null,null,null,null,null,0,0," "," ",null,null,null,null,null,null,null,"","","",{"$f":"IF(AH60=\"\",\"\",INDEX(CADD_DATA!$1:$1048576,AH60,2))","v":""},{"$f":"IF(AH60=\"\",\"\",INDEX(CADD_DATA!$1:$1048576,AH60,3))","v":""},{"$f":"IF(AH60=\"\",\"\",INDEX(CADD_DATA!$1:$1048576,AH60,4))","v":""},{"$f":"IF(AH60=\"\",\"\",INDEX(CADD_DATA!$1:$1048576,AH60,5))","v":""},{"$f":"IF(B60=\"\",\"\",MATCH($AU$4&\"_\"&B60,CADD_DATA!A:A,0))","v":""},0,"","","","",0,null,"",null,null,null,null,null,null,null,null,null,null,"","","",""]
[null,null,{"$f":"IF(ISBLANK(B61),\"\",CONCATENATE(LEFT(IF(AH61=\"\",\"\",INDEX(CADD_DATA!$1:$1048576,AH61,2)),SEARCH(\"+\",IF(AH61=\"\",\"\",INDEX(CADD_DATA!$1:$1048576,AH61,2)))-1)&RIGHT(IF(AH61=\"\",\"\",INDEX(CADD_DATA!$1:$1048576,AH61,2)),5)))","v":""},{"$f":"IF(AH61=\"\",\"\",INDEX(CADD_DATA!$1:$1048576,AH61,3))","v":""},{"$f":"IF(AH61=\"\",\"\",INDEX(CADD_DATA!$1:$1048576,AH61,6))","v":""},"EX",null,null,null,null,null,null,null,null,null,0,0," "," ",null,null,null,null,null,null,null,"","","",{"$f":"IF(AH61=\"\",\"\",INDEX(CADD_DATA!$1:$1048576,AH61,2))","v":""},{"$f":"IF(AH61=\"\",\"\",INDEX(CADD_DATA!$1:$1048576,AH61,3))","v":""},{"$f":"IF(AH61=\"\",\"\",INDEX(CADD_DATA!$1:$1048576,AH61,4))","v":""},{"$f":"IF(AH61=\"\",\"\",INDEX(CADD_DATA!$1:$1048576,AH61,5))","v":""},{"$f":"IF(B61=\"\",\"\",MATCH($AU$4&\"_\"&B61,CADD_DATA!A:A,0))","v":""},0,"","","","",0,null,"",null,null,null,null,null,null,null,null,null,null,"","","",""]
[null,null,{"$f":"IF(ISBLANK(B62),\"\",CONCATENATE(LEFT(IF(AH62=\"\",\"\",INDEX(CADD_DATA!$1:$1048576,AH62,2)),SEARCH(\"+\",IF(AH62=\"\",\"\",INDEX(CADD_DATA!$1:$1048576,AH62,2)))-1)&RIGHT(IF(AH62=\"\",\"\",INDEX(CADD_DATA!$1:$1048576,AH62,2)),5)))","v":""},{"$f":"IF(AH62=\"\",\"\",INDEX(CADD_DATA!$1:$1048576,AH62,3))","v":""},{"$f":"IF(AH62=\"\",\"\",INDEX(CADD_DATA!$1:$1048576,AH62,6))","v":""},"EX",null,null,null,null,null,null,null,null,null,0,0," "," ",null,null,null,null,null,null,null,"","","",{"$f":"IF(AH62=\"\",\"\",INDEX(CADD_DATA!$1:$1048576,AH62,2))","v":""},{"$f":"IF(AH62=\"\",\"\",INDEX(CADD_DATA!$1:$1048576,AH62,3))","v":""},{"$f":"IF(AH62=\"\",\"\",INDEX(CADD_DATA!$1:$1048576,AH62,4))","v":""},{"$f":"IF(AH62=\"\",\"\",INDEX(CADD_DATA!$1:$1048576,AH62,5))","v":""},{"$f":"IF(B62=\"\",\"\",MATCH($AU$4&\"_\"&B62,CADD_DATA!A:A,0))","v":""},0,"","","","",0,null,"",null,null,null,null,null,null,null,null,null,null,"","","",""]
[null,null,{"$f":"IF(ISBLANK(B63),\"\",CONCATENATE(LEFT(IF(AH63=\"\",\"\",INDEX(CADD_DATA!$1:$1048576,AH63,2)),SEARCH(\"+\",IF(AH63=\"\",\"\",INDEX(CADD_DATA!$1:$1048576,AH63,2)))-1)&RIGHT(IF(AH63=\"\",\"\",INDEX(CADD_DATA!$1:$1048576,AH63,2)),5)))","v":""},{"$f":"IF(AH63=\"\",\"\",INDEX(CADD_DATA!$1:$1048576,AH63,3))","v":""},{"$f":"IF(AH63=\"\",\"\",INDEX(CADD_DATA!$1:$1048576,AH63,6))","v":""},"EX",null,null,null,null,null,null,null,null,null,0,0," "," ",null,null,null,null,null,null,null,"","","",{"$f":"IF(AH63=\"\",\"\",INDEX(CADD_DATA!$1:$1048576,AH63,2))","v":""},{"$f":"IF(AH63=\"\",\"\",INDEX(CADD_DATA!$1:$1048576,AH63,3))","v":""},{"$f":"IF(AH63=\"\",\"\",INDEX(CADD_DATA!$1:$1048576,AH63,4))","v":""},{"$f":"IF(AH63=\"\",\"\",INDEX(CADD_DATA!$1:$1048576,AH63,5))","v":""},{"$f":"IF(B63=\"\",\"\",MATCH($AU$4&\"_\"&B63,CADD_DATA!A:A,0))","v":""},0,"","","","",0,null,"",null,null,null,null,null,null,null,null,null,null,"","","",""]
[null,null,{"$f":"IF(ISBLANK(B64),\"\",CONCATENATE(LEFT(IF(AH64=\"\",\"\",INDEX(CADD_DATA!$1:$1048576,AH64,2)),SEARCH(\"+\",IF(AH64=\"\",\"\",INDEX(CADD_DATA!$1:$1048576,AH64,2)))-1)&RIGHT(IF(AH64=\"\",\"\",INDEX(CADD_DATA!$1:$1048576,AH64,2)),5)))","v":""},{"$f":"IF(AH64=\"\",\"\",INDEX(CADD_DATA!$1:$1048576,AH64,3))","v":""},{"$f":"IF(AH64=\"\",\"\",INDEX(CADD_DATA!$1:$1048576,AH64,6))","v":""},"EX",null,null,null,null,null,null,null,null,null,0,0," "," ",null,null,null,null,null,null,null,"","","",{"$f":"IF(AH64=\"\",\"\",INDEX(CADD_DATA!$1:$1048576,AH64,2))","v":""},{"$f":"IF(AH64=\"\",\"\",INDEX(CADD_DATA!$1:$1048576,AH64,3))","v":""},{"$f":"IF(AH64=\"\",\"\",INDEX(CADD_DATA!$1:$1048576,AH64,4))","v":""},{"$f":"IF(AH64=\"\",\"\",INDEX(CADD_DATA!$1:$1048576,AH64,5))","v":""},{"$f":"IF(B64=\"\",\"\",MATCH($AU$4&\"_\"&B64,CADD_DATA!A:A,0))","v":""},0,"","","","",0,null,"",null,null,null,null,null,null,null,null,null,null,"","","",""]
[null,null,{"$f":"IF(ISBLANK(B65),\"\",CONCATENATE(LEFT(IF(AH65=\"\",\"\",INDEX(CADD_DATA!$1:$1048576,AH65,2)),SEARCH(\"+\",IF(AH65=\"\",\"\",INDEX(CADD_DATA!$1:$1048576,AH65,2)))-1)&RIGHT(IF(AH65=\"\",\"\",INDEX(CADD_DATA!$1:$1048576,AH65,2)),5)))","v":""},{"$f":"IF(AH65=\"\",\"\",INDEX(CADD_DATA!$1:$1048576,AH65,3))","v":""},{"$f":"IF(AH65=\"\",\"\",INDEX(CADD_DATA!$1:$1048576,AH65,6))","v":""},"EX",null,null,null,null,null,null,null,null,null,0,0," "," ",null,null,null,null,null,null,null,"","","",{"$f":"IF(AH65=\"\",\"\",INDEX(CADD_DATA!$1:$1048576,AH65,2))","v":""},{"$f":"IF(AH65=\"\",\"\",INDEX(CADD_DATA!$1:$1048576,AH65,3))","v":""},{"$f":"IF(AH65=\"\",\"\",INDEX(CADD_DATA!$1:$1048576,AH65,4))","v":""},{"$f":"IF(AH65=\"\",\"\",INDEX(CADD_DATA!$1:$1048576,AH65,5))","v":""},{"$f":"IF(B65=\"\",\"\",MATCH($AU$4&\"_\"&B65,CADD_DATA!A:A,0))","v":""},0,"","","","",0,null,"",null,null,null,null,null,null,null,null,null,null,"","","",""]
[null,null,{"$f":"IF(ISBLANK(B66),\"\",CONCATENATE(LEFT(IF(AH66=\"\",\"\",INDEX(CADD_DATA!$1:$1048576,AH66,2)),SEARCH(\"+\",IF(AH66=\"\",\"\",INDEX(CADD_DATA!$1:$1048576,AH66,2)))-1)&RIGHT(IF(AH66=\"\",\"\",INDEX(CADD_DATA!$1:$1048576,AH66,2)),5)))","v":""},{"$f":"IF(AH66=\"\",\"\",INDEX(CADD_DATA!$1:$1048576,AH66,3))","v":""},{"$f":"IF(AH66=\"\",\"\",INDEX(CADD_DATA!$1:$1048576,AH66,6))","v":""},"EX",null,null,null,null,null,null,null,null,null,0,0," "," ",null,null,null,null,null,null,null,"","","",{"$f":"IF(AH66=\"\",\"\",INDEX(CADD_DATA!$1:$1048576,AH66,2))","v":""},{"$f":"IF(AH66=\"\",\"\",INDEX(CADD_DATA!$1:$1048576,AH66,3))","v":""},{"$f":"IF(AH66=\"\",\"\",INDEX(CADD_DATA!$1:$1048576,AH66,4))","v":""},{"$f":"IF(AH66=\"\",\"\",INDEX(CADD_DATA!$1:$1048576,AH66,5))","v":""},{"$f":"IF(B66=\"\",\"\",MATCH($AU$4&\"_\"&B66,CADD_DATA!A:A,0))","v":""},0,"","","","",0,null,"",null,null,null,null,null,null,null,null,null,null,"","","",""]
[null,null,{"$f":"IF(ISBLANK(B67),\"\",CONCATENATE(LEFT(IF(AH67=\"\",\"\",INDEX(CADD_DATA!$1:$1048576,AH67,2)),SEARCH(\"+\",IF(AH67=\"\",\"\",INDEX(CADD_DATA!$1:$1048576,AH67,2)))-1)&RIGHT(IF(AH67=\"\",\"\",INDEX(CADD_DATA!$1:$1048576,AH67,2)),5)))","v":""},{"$f":"IF(AH67=\"\",\"\",INDEX(CADD_DATA!$1:$1048576,AH67,3))","v":""},{"$f":"IF(AH67=\"\",\"\",INDEX(CADD_DATA!$1:$1048576,AH67,6))","v":""},"EX",null,null,null,null,null,null,null,null,null,0,0," "," ",null,null,null,null,null,null,null,"","",{"$f":"IF(AND(B67=\"\",C67=\"\"),\"\",IF(E67=0,\"\",E67))","v":""},{"$f":"IF(AH67=\"\",\"\",INDEX(CADD_DATA!$1:$1048576,AH67,2))","v":""},{"$f":"IF(AH67=\"\",\"\",INDEX(CADD_DATA!$1:$1048576,AH67,3))","v":""},{"$f":"IF(AH67=\"\",\"\",INDEX(CADD_DATA!$1:$1048576,AH67,4))","v":""},{"$f":"IF(AH67=\"\",\"\",INDEX(CADD_DATA!$1:$1048576,AH67,5))","v":""},{"$f":"IF(B67=\"\",\"\",MATCH($AU$4&\"_\"&B67,CADD_DATA!A:A,0))","v":""},0,"","","","",0,null,"",null,null,null,null,null,null,null,null,null,null,"","","",""]
[null,null,{"$f":"IF(ISBLANK(B68),\"\",CONCATENATE(LEFT(IF(AH68=\"\",\"\",INDEX(CADD_DATA!$1:$1048576,AH68,2)),SEARCH(\"+\",IF(AH68=\"\",\"\",INDEX(CADD_DATA!$1:$1048576,AH68,2)))-1)&RIGHT(IF(AH68=\"\",\"\",INDEX(CADD_DATA!$1:$1048576,AH68,2)),5)))","v":""},{"$f":"IF(AH68=\"\",\"\",INDEX(CADD_DATA!$1:$1048576,AH68,3))","v":""},{"$f":"IF(AH68=\"\",\"\",INDEX(CADD_DATA!$1:$1048576,AH68,6))","v":""},"EX",null,null,null,null,null,null,null,null,null,{"$f":"IF(AND(ISBLANK(H68),ISBLANK(I68)),0,(IF((ISBLANK(M68)),(ABS((INDEX($E$3:$E$71,MATCH(I68,$B$3:$B$71,0))-INDEX($E$3:$E$71,MATCH(H68,$B$3:$B$71,0)))/R68)),((INDEX($E$3:$E$71,MATCH(I68,$B$3:$B$71,0))-INDEX($E$3:$E$71,MATCH(H68,$B$3:$B$71,0)))/R68))))","v":0},0,{"$f":"IF(AND(ISBLANK(H68),ISBLANK(I68)),\" \",SQRT(((VLOOKUP(I68,$AB$3:$AG$71,5,FALSE)-VLOOKUP(H68,$AB$3:$AG$71,5,FALSE))^2)+((VLOOKUP(I68,$AB$3:$AG$71,6,FALSE)-VLOOKUP(H68,$AB$3:$AG$71,6,FALSE))^2)))","v":" "}," ",null,null,null,null,null,null,null,{"$f":"IF(ISBLANK(B68),\"\",TEXT(B68,\"0\"))","v":""},{"$f":"IF(B68=\"\",\"\",B68)","v":""},{"$f":"IF(AND(B68=\"\",C68=\"\"),\"\",IF(E68=0,\"\",E68))","v":""},{"$f":"IF(AH68=\"\",\"\",INDEX(CADD_DATA!$1:$1048576,AH68,2))","v":""},{"$f":"IF(AH68=\"\",\"\",INDEX(CADD_DATA!$1:$1048576,AH68,3))","v":""},{"$f":"IF(AH68=\"\",\"\",INDEX(CADD_DATA!$1:$1048576,AH68,4))","v":""},{"$f":"IF(AH68=\"\",\"\",INDEX(CADD_DATA!$1:$1048576,AH68,5))","v":""},{"$f":"IF(B68=\"\",\"\",MATCH($AU$4&\"_\"&B68,CADD_DATA!A:A,0))","v":""},0,{"$f":"CONCATENATE(IF(LEN(H68)=1,\"0\"&H68,H68),IF(LEN(I68)=1,\"0\"&I68,I68))","v":""},{"$f":"CONCATENATE(IF(LEN(I68)=1,\"0\"&I68,I68),IF(LEN(H68)=1,\"0\"&H68,H68))","v":""},"","",0,null,"",null,null,null,null,null,null,null,null,null,null,"","","",{"$f":"IF(BA68=\"\",\"\",AC68)","v":""}]
[null,null,{"$f":"IF(ISBLANK(B69),\"\",CONCATENATE(LEFT(IF(AH69=\"\",\"\",INDEX(CADD_DATA!$1:$1048576,AH69,2)),SEARCH(\"+\",IF(AH69=\"\",\"\",INDEX(CADD_DATA!$1:$1048576,AH69,2)))-1)&RIGHT(IF(AH69=\"\",\"\",INDEX(CADD_DATA!$1:$1048576,AH69,2)),5)))","v":""},{"$f":"IF(AH69=\"\",\"\",INDEX(CADD_DATA!$1:$1048576,AH69,3))","v":""},{"$f":"IF(AH69=\"\",\"\",INDEX(CADD_DATA!$1:$1048576,AH69,6))","v":""},"EX",null,null,null,null,null,null,null,null,null,0,0," "," ",null,null,null,null,null,null,null,"","",{"$f":"IF(AND(B69=\"\",C69=\"\"),\"\",IF(E69=0,\"\",E69))","v":""},{"$f":"IF(AH69=\"\",\"\",INDEX(CADD_DATA!$1:$1048576,AH69,2))","v":""},{"$f":"IF(AH69=\"\",\"\",INDEX(CADD_DATA!$1:$1048576,AH69,3))","v":""},{"$f":"IF(AH69=\"\",\"\",INDEX(CADD_DATA!$1:$1048576,AH69,4))","v":""},{"$f":"IF(AH69=\"\",\"\",INDEX(CADD_DATA!$1:$1048576,AH69,5))","v":""},{"$f":"IF(B69=\"\",\"\",MATCH($AU$4&\"_\"&B69,CADD_DATA!A:A,0))","v":""},0,"","","","",0,null,"",null,null,null,null,null,null,null,null,null,null,"","","",""]
[null,null,{"$f":"IF(ISBLANK(B70),\"\",CONCATENATE(LEFT(IF(AH70=\"\",\"\",INDEX(CADD_DATA!$1:$1048576,AH70,2)),SEARCH(\"+\",IF(AH70=\"\",\"\",INDEX(CADD_DATA!$1:$1048576,AH70,2)))-1)&RIGHT(IF(AH70=\"\",\"\",INDEX(CADD_DATA!$1:$1048576,AH70,2)),5)))","v":""},{"$f":"IF(AH70=\"\",\"\",INDEX(CADD_DATA!$1:$1048576,AH70,3))","v":""},{"$f":"IF(AH70=\"\",\"\",INDEX(CADD_DATA!$1:$1048576,AH70,6))","v":""},"EX",null,null,null,null,null,null,null,null,null,0,0," "," ",null,null,null,null,null,null,null,"","",{"$f":"IF(AND(B70=\"\",C70=\"\"),\"\",IF(E70=0,\"\",E70))","v":""},{"$f":"IF(AH70=\"\",\"\",INDEX(CADD_DATA!$1:$1048576,AH70,2))","v":""},{"$f":"IF(AH70=\"\",\"\",INDEX(CADD_DATA!$1:$1048576,AH70,3))","v":""},{"$f":"IF(AH70=\"\",\"\",INDEX(CADD_DATA!$1:$1048576,AH70,4))","v":""},{"$f":"IF(AH70=\"\",\"\",INDEX(CADD_DATA!$1:$1048576,AH70,5))","v":""},{"$f":"IF(B70=\"\",\"\",MATCH($AU$4&\"_\"&B70,CADD_DATA!A:A,0))","v":""},0,"","","","",0,null,"",null,null,null,null,null,null,null,null,null,null,"","","",""]
[null,null,{"$f":"IF(ISBLANK(B71),\"\",CONCATENATE(LEFT(IF(AH71=\"\",\"\",INDEX(CADD_DATA!$1:$1048576,AH71,2)),SEARCH(\"+\",IF(AH71=\"\",\"\",INDEX(CADD_DATA!$1:$1048576,AH71,2)))-1)&RIGHT(IF(AH71=\"\",\"\",INDEX(CADD_DATA!$1:$1048576,AH71,2)),5)))","v":""},{"$f":"IF(AH71=\"\",\"\",INDEX(CADD_DATA!$1:$1048576,AH71,3))","v":""},{"$f":"IF(AH71=\"\",\"\",INDEX(CADD_DATA!$1:$1048576,AH71,6))","v":""},"EX",null,null,null,null,null,null,null,null,null,0,0," "," ",null,null,null,null,null,null,null,"","",{"$f":"IF(AND(B71=\"\",C71=\"\"),\"\",IF(E71=0,\"\",E71))","v":""},{"$f":"IF(AH71=\"\",\"\",INDEX(CADD_DATA!$1:$1048576,AH71,2))","v":""},{"$f":"IF(AH71=\"\",\"\",INDEX(CADD_DATA!$1:$1048576,AH71,3))","v":""},{"$f":"IF(AH71=\"\",\"\",INDEX(CADD_DATA!$1:$1048576,AH71,4))","v":""},{"$f":"IF(AH71=\"\",\"\",INDEX(CADD_DATA!$1:$1048576,AH71,5))","v":""},{"$f":"IF(B71=\"\",\"\",MATCH($AU$4&\"_\"&B71,CADD_DATA!A:A,0))","v":""},0,{"$f":"CONCATENATE(H71,I71)","v":""},"","","",0,null,"",null,null,null,null,null,null,null,null,null,null,"","","",""]